Workbook

Sheet RESUMEN
B6: DATOS DE CABECERA PACC
B7: MONTO ESTIMADO TOTAL | C7: =PACC!B10 -> RD$1,507,742,035.47
B8: CANTIDAD DE PROCESOS REGISTRADOS | C8: =PACC!B9 -> 66
B9: CAPÍTULO | C9: =IF(PACC!E6="","",PACC!E6) -> 0206
B10: SUB CAPÍTULO | C10: =IF(PACC!E7="","",PACC!E7) -> 01
B11: UNIDAD EJECUTORA | C11: =IF(PACC!E8="","",PACC!E8) -> 0004
B12: UNIDAD DE COMPRA | C12: =IF(PACC!E9="","",PACC!E9) -> Instituto Nacional de Educacion Fisica
B13: AÑO FISCAL | C13: =IF(PACC!E11="","",PACC!E11) -> 2023
B14: FECHA APROBACIÓN | C14: =IF(PACC!E12="","",PACC!E12) -> 2023-01-02
B15: MONTOS ESTIMADOS SEGÚN OBJETO DE CONTRATACIÓN
B16: BIENES | C16: =SUMIF(ObjetoContratacionOculto,"="&Bienes,TotalEstColumnValue) -> RD$359,299,500.00
B17: OBRAS | C17: =SUMIF(ObjetoContratacionOculto,"="&Obras,TotalEstColumnValue) -> RD$390,664,489.52
B18: SERVICIOS | C18: =SUMIF(ObjetoContratacionOculto,"="&Servicios,TotalEstColumnValue) -> RD$757,778,045.95
B19: SERVICIOS: CONSULTORÍA | C19: =SUMIF(ObjetoContratacionOculto,"="&ServiciosConsultoria,TotalEstColumnValue) -> 0
B20: SERVICIOS: CONSULTORÍA BASADA EN LA CALIDAD DE LOS SERVICIOS | C20: =SUMIF(ObjetoContratacionOculto,"="&ConsultoriaServicios,TotalEstColumnValue) -> 0
B21: MONTOS ESTIMADOS SEGÚN CLASIFICACIÓN MIPYME
B22: MIPYME | C22: =SUMIF(MIPYMEOculto,"="&MIPYMESí,TotalEstColumnValue) -> RD$882,750,825.07
B23: MIPYME MUJER | C23: =SUMIF(MIPYMEOculto,"="&MIPYMEMujer,TotalEstColumnValue) -> RD$5,100,000.00
B24: NO MIPYME | C24: =SUMIF(MIPYMEOculto,"="&MIPYMENo,TotalEstColumnValue) -> RD$619,891,210.40
B25: MONTOS ESTIMADOS SEGÚN TIPO DE PROCEDIMIENTO
B26: COMPRAS POR DEBAJO DEL UMBRAL | C26: =SUMIF(ProcedimientoOculto,"="&ModCU,TotalEstColumnValue) -> RD$18,026,000.00
B27: COMPRA MENOR | C27: =SUMIF(ProcedimientoOculto,"="&ModCM,TotalEstColumnValue) -> 0
B28: COMPARACIÓN DE PRECIOS | C28: =SUMIF(ProcedimientoOculto,"="&ModCP,TotalEstColumnValue) -> RD$582,081,535.47
B29: LICITACIÓN PÚBLICA | C29: =SUMIF(ProcedimientoOculto,"="&ModLP,TotalEstColumnValue) -> RD$907,634,500.00
B30: LICITACIÓN PÚBLICA INTERNACIONAL | C30: =SUMIF(ProcedimientoOculto,"="&ModLI,TotalEstColumnValue) -> 0
B31: LICITACIÓN RESTRINGIDA | C31: =SUMIF(ProcedimientoOculto,"="&ModLR,TotalEstColumnValue) -> 0
B32: SORTEO DE OBRAS | C32: =SUMIF(ProcedimientoOculto,"="&ModSO,TotalEstColumnValue) -> 0
B33: EXCEPCIÓN - BIENES O SERVICIOS CON EXCLUSIVIDAD | C33: =SUMIF(ProcedimientoOculto,"="&ModEBienes,TotalEstColumnValue) -> 0
B34: EXCEPCIÓN - CONSTRUCCIÓN, INSTALACIÓN O ADQUISICIÓN DE OFICINAS PARA EL SERVICIO EXTERIOR | C34: =SUMIF(ProcedimientoOculto,"="&ModEConstruccion,TotalEstColumnValue) -> 0
B35: EXCEPCIÓN - CONTRATACIÓN DE PUBLICIDAD A TRAVÉS DE MEDIOS DE COMUNICACIÓN SOCIAL | C35: =SUMIF(ProcedimientoOculto,"="&ModEPublicidad,TotalEstColumnValue) -> 0
B36: EXCEPCIÓN - OBRAS CIENTÍFICAS, TÉCNICAS, ARTÍSTICAS, O RESTAURACIÓN DE MONUMENTOS HISTÓRICOS | C36: =SUMIF(ProcedimientoOculto,"="&ModEObras,TotalEstColumnValue) -> 0
B37: EXCEPCIÓN - PROVEEDOR ÚNICO | C37: =SUMIF(ProcedimientoOculto,"="&ModEProveedor,TotalEstColumnValue) -> 0
B38: EXCEPCIÓN - RESCISIÓN DE CONTRATOS CUYA TERMINACIÓN NO EXCEDA EL 40% DEL MONTO TOTAL DEL PROYECTO, OBRA O SERVICIO | C38: =SUMIF(ProcedimientoOculto,"="&ModE40,TotalEstColumnValue) -> 0
B39: EXCEPCIÓN - RESOLUCIÓN 15-08 SOBRE COMPRA Y CONTRATACIÓN DE PASAJE AÉREO, COMBUSTIBLE Y REPARACIÓN DE VEHÍCULOS DE MOTOR | C39: =SUMIF(ProcedimientoOculto,"="&ModE1508,TotalEstColumnValue) -> 0

Sheet PACC
B2: PLAN ANUAL DE COMPRAS Y CONTRATACIONES
B3: ="AÑO "&E11 -> AÑO 2023
A6: SNCC.F.069 | D6: Capítulo | E6: 0206
A7: Version: 1.0.0 | D7: Sub Capítulo | E7: 01
D8: Unidad Ejecutora | E8: 0004
A9: Cantidad Procesos Registrados | B9: =COUNTIFS(TotalEstColumnName,"="&TotalEstLabel,TotalEstColumnValue,">0") -> 66 | D9: Unidad de Compra | E9: Instituto Nacional de Educacion Fisica
A10: Monto Estimado Total | B10: =SUMIF(TotalEstColumnName,"="&TotalEstLabel,TotalEstColumnValue) -> RD$1,507,742,035.47 | D10: Código de la Unidad de Compra | E10: 000875
D11: Año Fiscal | E11: 2023
D12: Fecha Aprobación | E12: 2023-01-02
A15: NOMBRE O REFERENCIA DE CONTRATACIÓN | B15: FINALIDAD DE LA CONTRATACIÓN | C15: OBJETO DE CONTRATACIÓN | D15: PROCEDIMIENTO DE SELECCIÓN | E15: DESTINADO A MIPYMES | F15: CÓDIGO SNIP
A16: Mantenimiento de Infraestructura deportiva en los centros educativos de las 18 regiones | B16: Cumplir la planificación | C16: Obras | D16: Comparacion de Precios | E16: Sí
A17: FECHA DE NECESSIDAD | B17: FECHA INICIO PROCESO DE COMPRA | C17: 2023-02-05 | D17: LUGAR DE EJECUCIÓN / ENTREGA | E17: Región | F17: OZAMA O METROPOLITANA
B18: TRIMESTRE | C18: =IF(C17="","",IF(AND(MONTH(C17)>=1,MONTH(C17)<=3),1,IF(AND(MONTH(C17)>=4,MONTH(C17)<=6),2,IF(AND(MONTH(C17)>=7,MONTH(C17)<=9),3,4)))) -> 1 | E18: Provincia | F18: Distrito Nacional
B19: FECHA PREVISTA ADJUDICACIÓN | C19: 2023-03-05 | E19: Municipio | F19: Distrito Nacional
B20: TRIMESTRE | C20: =IF(C19="","",IF(AND(MONTH(C19)>=1,MONTH(C19)<=3),1,IF(AND(MONTH(C19)>=4,MONTH(C19)<=6),2,IF(AND(MONTH(C19)>=7,MONTH(C19)<=9),3,4)))) -> 1 | E20: Distrito Municipal
A22: CÓDIGO CATÁLOGO | B22: ARTÍCULO | C22: UNIDAD DE MEDIDA | D22: CANTIDAD TOTAL ESTIMADA | E22: PRECIO UNITARIO ESTIMADO | F22: MONTO TOTAL ESTIMADO
A23: 30222301 | B23: =IFERROR(INDEX(UNSPSCDes,MATCH(INDIRECT(ADDRESS(ROW(),COLUMN()-1,4)),UNSPSCCode,0)),IF(INDIRECT(ADDRESS(ROW(),COLUMN()-1,4))="60121001","Pinturas","")) -> Escuelas | C23: =IFERROR(VLOOKUP("UD",'Informacion '!P:Q,2,FALSE),"") -> Unidad | D23: 444 | E23: RD$313,063.06 | F23: =INDIRECT(ADDRESS(ROW(),COLUMN()-2,4))*INDIRECT(ADDRESS(ROW(),COLUMN()-1,4)) -> RD$139,000,000.00
A24: 30222701 | B24: =IFERROR(INDEX(UNSPSCDes,MATCH(INDIRECT(ADDRESS(ROW(),COLUMN()-1,4)),UNSPSCCode,0)),IF(INDIRECT(ADDRESS(ROW(),COLUMN()-1,4))="60121001","Pinturas","")) -> Oficinas | C24: =IFERROR(VLOOKUP("UD",'Informacion '!P:Q,2,FALSE),"") -> Unidad | D24: 1 | E24: RD$15,000,000.00 | F24: =INDIRECT(ADDRESS(ROW(),COLUMN()-2,4))*INDIRECT(ADDRESS(ROW(),COLUMN()-1,4)) -> RD$15,000,000.00
E25: TOTAL COMPRA ESTIMADA | F25: =SUM(Table4[MONTO TOTAL ESTIMADO]) -> RD$154,000,000.00 | H25: =C16 -> Obras | I25: =E16 -> Sí | J25: =D16 -> Comparacion de Precios
A27: NOMBRE O REFERENCIA DE CONTRATACIÓN | B27: FINALIDAD DE LA CONTRATACIÓN | C27: OBJETO DE CONTRATACIÓN | D27: PROCEDIMIENTO DE SELECCIÓN | E27: DESTINADO A MIPYMES | F27: CÓDIGO SNIP
A28: Mantenimiento de Infraestructura deportiva en los centros educativos de las 18 regiones | B28: Cumplir la planificación | C28: Obras | D28: Comparacion de Precios | E28: Sí
A29: FECHA DE NECESSIDAD | B29: FECHA INICIO PROCESO DE COMPRA | C29: 2023-04-15 | D29: LUGAR DE EJECUCIÓN / ENTREGA | E29: Región | F29: OZAMA O METROPOLITANA
B30: TRIMESTRE | C30: =IF(C29="","",IF(AND(MONTH(C29)>=1,MONTH(C29)<=3),1,IF(AND(MONTH(C29)>=4,MONTH(C29)<=6),2,IF(AND(MONTH(C29)>=7,MONTH(C29)<=9),3,4)))) -> 2 | E30: Provincia | F30: Distrito Nacional
B31: FECHA PREVISTA ADJUDICACIÓN | C31: 2023-05-20 | E31: Municipio | F31: Distrito Nacional
B32: TRIMESTRE | C32: =IF(C31="","",IF(AND(MONTH(C31)>=1,MONTH(C31)<=3),1,IF(AND(MONTH(C31)>=4,MONTH(C31)<=6),2,IF(AND(MONTH(C31)>=7,MONTH(C31)<=9),3,4)))) -> 2 | E32: Distrito Municipal
A34: CÓDIGO CATÁLOGO | B34: ARTÍCULO | C34: UNIDAD DE MEDIDA | D34: CANTIDAD TOTAL ESTIMADA | E34: PRECIO UNITARIO ESTIMADO | F34: MONTO TOTAL ESTIMADO
A35: 30222301 | B35: =IFERROR(INDEX(UNSPSCDes,MATCH(INDIRECT(ADDRESS(ROW(),COLUMN()-1,4)),UNSPSCCode,0)),IF(INDIRECT(ADDRESS(ROW(),COLUMN()-1,4))="60121001","Pinturas","")) -> Escuelas | C35: =IFERROR(VLOOKUP("UD",'Informacion '!P:Q,2,FALSE),"") -> Unidad | D35: 52 | E35: RD$313,063.06 | F35: =INDIRECT(ADDRESS(ROW(),COLUMN()-2,4))*INDIRECT(ADDRESS(ROW(),COLUMN()-1,4)) -> RD$16,279,279.12
A36: 30222701 | B36: =IFERROR(INDEX(UNSPSCDes,MATCH(INDIRECT(ADDRESS(ROW(),COLUMN()-1,4)),UNSPSCCode,0)),IF(INDIRECT(ADDRESS(ROW(),COLUMN()-1,4))="60121001","Pinturas","")) -> Oficinas | C36: =IFERROR(VLOOKUP("UD",'Informacion '!P:Q,2,FALSE),"") -> Unidad | D36: 1 | E36: RD$80,000,000.00 | F36: =INDIRECT(ADDRESS(ROW(),COLUMN()-2,4))*INDIRECT(ADDRESS(ROW(),COLUMN()-1,4)) -> RD$80,000,000.00
A37: 30222301 | B37: =IFERROR(INDEX(UNSPSCDes,MATCH(INDIRECT(ADDRESS(ROW(),COLUMN()-1,4)),UNSPSCCode,0)),IF(INDIRECT(ADDRESS(ROW(),COLUMN()-1,4))="60121001","Pinturas","")) -> Escuelas | C37: =IFERROR(VLOOKUP("UD",'Informacion '!P:Q,2,FALSE),"") -> Unidad | D37: 1 | E37: RD$20,000,000.00 | F37: =INDIRECT(ADDRESS(ROW(),COLUMN()-2,4))*INDIRECT(ADDRESS(ROW(),COLUMN()-1,4)) -> RD$20,000,000.00
E38: TOTAL COMPRA ESTIMADA | F38: =SUM(Table5[MONTO TOTAL ESTIMADO]) -> RD$116,279,279.12 | H38: =C28 -> Obras | I38: =E28 -> Sí | J38: =D28 -> Comparacion de Precios
A40: NOMBRE O REFERENCIA DE CONTRATACIÓN | B40: FINALIDAD DE LA CONTRATACIÓN | C40: OBJETO DE CONTRATACIÓN | D40: PROCEDIMIENTO DE SELECCIÓN | E40: DESTINADO A MIPYMES | F40: CÓDIGO SNIP
A41: Creacion de Centro de Iniciacion Deportiva Para La Concentracion de Estudiantes | B41: Ejecutar lo planificado | C41: Obras | D41: Comparacion de Precios | E41: No
A42: FECHA DE NECESSIDAD | B42: FECHA INICIO PROCESO DE COMPRA | C42: 2023-07-20 | D42: LUGAR DE EJECUCIÓN / ENTREGA | E42: Región | F42: OZAMA O METROPOLITANA
B43: TRIMESTRE | C43: =IF(C42="","",IF(AND(MONTH(C42)>=1,MONTH(C42)<=3),1,IF(AND(MONTH(C42)>=4,MONTH(C42)<=6),2,IF(AND(MONTH(C42)>=7,MONTH(C42)<=9),3,4)))) -> 3 | E43: Provincia | F43: Distrito Nacional
B44: FECHA PREVISTA ADJUDICACIÓN | C44: 2023-08-25 | E44: Municipio | F44: Distrito Nacional
B45: TRIMESTRE | C45: =IF(C44="","",IF(AND(MONTH(C44)>=1,MONTH(C44)<=3),1,IF(AND(MONTH(C44)>=4,MONTH(C44)<=6),2,IF(AND(MONTH(C44)>=7,MONTH(C44)<=9),3,4)))) -> 3 | E45: Distrito Municipal
A47: CÓDIGO CATÁLOGO | B47: ARTÍCULO | C47: UNIDAD DE MEDIDA | D47: CANTIDAD TOTAL ESTIMADA | E47: PRECIO UNITARIO ESTIMADO | F47: MONTO TOTAL ESTIMADO
A48: 30222301 | B48: =IFERROR(INDEX(UNSPSCDes,MATCH(INDIRECT(ADDRESS(ROW(),COLUMN()-1,4)),UNSPSCCode,0)),IF(INDIRECT(ADDRESS(ROW(),COLUMN()-1,4))="82121503","Impresión digital","")) -> Escuelas | C48: =IFERROR(VLOOKUP("UD",'Informacion '!P:Q,2,FALSE),"") -> Unidad | D48: 1 | E48: RD$120,385,210.40 | F48: =INDIRECT(ADDRESS(ROW(),COLUMN()-2,4))*INDIRECT(ADDRESS(ROW(),COLUMN()-1,4)) -> RD$120,385,210.40
E49: TOTAL COMPRA ESTIMADA | F49: =SUM(Table6[MONTO TOTAL ESTIMADO]) -> RD$120,385,210.40 | H49: =C41 -> Obras | I49: =E41 -> No | J49: =D41 -> Comparacion de Precios
A51: NOMBRE O REFERENCIA DE CONTRATACIÓN | B51: FINALIDAD DE LA CONTRATACIÓN | C51: OBJETO DE CONTRATACIÓN | D51: PROCEDIMIENTO DE SELECCIÓN | E51: DESTINADO A MIPYMES | F51: CÓDIGO SNIP
A52: Entrega de Kit para los docentes de educacion fisica en las 18 Regionales | B52: Ejecutar lo planificado | C52: Bienes | D52: Licitacion Publica | E52: Sí
A53: FECHA DE NECESSIDAD | B53: FECHA INICIO PROCESO DE COMPRA | C53: 2023-02-05 | D53: LUGAR DE EJECUCIÓN / ENTREGA | E53: Región | F53: OZAMA O METROPOLITANA
B54: TRIMESTRE | C54: =IF(C53="","",IF(AND(MONTH(C53)>=1,MONTH(C53)<=3),1,IF(AND(MONTH(C53)>=4,MONTH(C53)<=6),2,IF(AND(MONTH(C53)>=7,MONTH(C53)<=9),3,4)))) -> 1 | E54: Provincia | F54: Distrito Nacional
B55: FECHA PREVISTA ADJUDICACIÓN | C55: 2023-03-05 | E55: Municipio | F55: Distrito Nacional
B56: TRIMESTRE | C56: =IF(C55="","",IF(AND(MONTH(C55)>=1,MONTH(C55)<=3),1,IF(AND(MONTH(C55)>=4,MONTH(C55)<=6),2,IF(AND(MONTH(C55)>=7,MONTH(C55)<=9),3,4)))) -> 1 | E56: Distrito Municipal
A58: CÓDIGO CATÁLOGO | B58: ARTÍCULO | C58: UNIDAD DE MEDIDA | D58: CANTIDAD TOTAL ESTIMADA | E58: PRECIO UNITARIO ESTIMADO | F58: MONTO TOTAL ESTIMADO
A59: 53101602 | B59: =IFERROR(INDEX(UNSPSCDes,MATCH(INDIRECT(ADDRESS(ROW(),COLUMN()-1,4)),UNSPSCCode,0)),IF(INDIRECT(ADDRESS(ROW(),COLUMN()-1,4))="53102301","Camisetas interiores","")) -> Camisas para hombre | C59: =IFERROR(VLOOKUP("UD",'Informacion '!P:Q,2,FALSE),"") -> Unidad | D59: 4100 | E59: RD$1,707.32 | F59: =INDIRECT(ADDRESS(ROW(),COLUMN()-2,4))*INDIRECT(ADDRESS(ROW(),COLUMN()-1,4)) -> RD$7,000,000.00
E60: TOTAL COMPRA ESTIMADA | F60: =SUM(Table7[MONTO TOTAL ESTIMADO]) -> RD$7,000,000.00 | H60: =C52 -> Bienes | I60: =E52 -> Sí | J60: =D52 -> Licitacion Publica
A62: NOMBRE O REFERENCIA DE CONTRATACIÓN | B62: FINALIDAD DE LA CONTRATACIÓN | C62: OBJETO DE CONTRATACIÓN | D62: PROCEDIMIENTO DE SELECCIÓN | E62: DESTINADO A MIPYMES | F62: CÓDIGO SNIP
A63: Realizacion de acompañamiento a los docentes de educacion fisica de los niveles primarios y secundarios en 18 regionales | B63: Ejecutar lo planificado | C63: Bienes | D63: Licitacion Publica | E63: Sí
A64: FECHA DE NECESSIDAD | B64: FECHA INICIO PROCESO DE COMPRA | C64: 2023-02-05 | D64: LUGAR DE EJECUCIÓN / ENTREGA | E64: Región | F64: OZAMA O METROPOLITANA
B65: TRIMESTRE | C65: =IF(C64="","",IF(AND(MONTH(C64)>=1,MONTH(C64)<=3),1,IF(AND(MONTH(C64)>=4,MONTH(C64)<=6),2,IF(AND(MONTH(C64)>=7,MONTH(C64)<=9),3,4)))) -> 1 | E65: Provincia | F65: Distrito Nacional
B66: FECHA PREVISTA ADJUDICACIÓN | C66: 2023-03-05 | E66: Municipio | F66: Distrito Nacional
B67: TRIMESTRE | C67: =IF(C66="","",IF(AND(MONTH(C66)>=1,MONTH(C66)<=3),1,IF(AND(MONTH(C66)>=4,MONTH(C66)<=6),2,IF(AND(MONTH(C66)>=7,MONTH(C66)<=9),3,4)))) -> 1 | E67: Distrito Municipal
A69: CÓDIGO CATÁLOGO | B69: ARTÍCULO | C69: UNIDAD DE MEDIDA | D69: CANTIDAD TOTAL ESTIMADA | E69: PRECIO UNITARIO ESTIMADO | F69: MONTO TOTAL ESTIMADO
A70: 53101602 | B70: =IFERROR(INDEX(UNSPSCDes,MATCH(INDIRECT(ADDRESS(ROW(),COLUMN()-1,4)),UNSPSCCode,0)),IF(INDIRECT(ADDRESS(ROW(),COLUMN()-1,4))="53102301","Camisetas interiores","")) -> Camisas para hombre | C70: =IFERROR(VLOOKUP("UD",'Informacion '!P:Q,2,FALSE),"") -> Unidad | D70: 3055 | E70: RD$1,707.20 | F70: =INDIRECT(ADDRESS(ROW(),COLUMN()-2,4))*INDIRECT(ADDRESS(ROW(),COLUMN()-1,4)) -> RD$5,215,500.00
E71: TOTAL COMPRA ESTIMADA | F71: =SUM(Table8[MONTO TOTAL ESTIMADO]) -> RD$5,215,500.00 | H71: =C63 -> Bienes | I71: =E63 -> Sí | J71: =D63 -> Licitacion Publica
A73: NOMBRE O REFERENCIA DE CONTRATACIÓN | B73: FINALIDAD DE LA CONTRATACIÓN | C73: OBJETO DE CONTRATACIÓN | D73: PROCEDIMIENTO DE SELECCIÓN | E73: DESTINADO A MIPYMES | F73: CÓDIGO SNIP
A74: Realización de eventos para la entrega de medalla al merito magistral de educación física | B74: Ejecutar lo planificado | C74: Servicios | D74: Comparacion de Precios | E74: Sí
A75: FECHA DE NECESSIDAD | B75: FECHA INICIO PROCESO DE COMPRA | C75: 2023-03-05 | D75: LUGAR DE EJECUCIÓN / ENTREGA | E75: Región | F75: OZAMA O METROPOLITANA
B76: TRIMESTRE | C76: =IF(C75="","",IF(AND(MONTH(C75)>=1,MONTH(C75)<=3),1,IF(AND(MONTH(C75)>=4,MONTH(C75)<=6),2,IF(AND(MONTH(C75)>=7,MONTH(C75)<=9),3,4)))) -> 1 | E76: Provincia | F76: Distrito Nacional
B77: FECHA PREVISTA ADJUDICACIÓN | C77: 2023-04-20 | E77: Municipio | F77: Distrito Nacional
B78: TRIMESTRE | C78: =IF(C77="","",IF(AND(MONTH(C77)>=1,MONTH(C77)<=3),1,IF(AND(MONTH(C77)>=4,MONTH(C77)<=6),2,IF(AND(MONTH(C77)>=7,MONTH(C77)<=9),3,4)))) -> 2 | E78: Distrito Municipal
A80: CÓDIGO CATÁLOGO | B80: ARTÍCULO | C80: UNIDAD DE MEDIDA | D80: CANTIDAD TOTAL ESTIMADA | E80: PRECIO UNITARIO ESTIMADO | F80: MONTO TOTAL ESTIMADO
A81: 80141607 | B81: =IFERROR(INDEX(UNSPSCDes,MATCH(INDIRECT(ADDRESS(ROW(),COLUMN()-1,4)),UNSPSCCode,0)),IF(INDIRECT(ADDRESS(ROW(),COLUMN()-1,4))="80141607","Gestión de eventos","")) -> Gestión de eventos | C81: =IFERROR(VLOOKUP("UD",'Informacion '!P:Q,2,FALSE),"") -> Unidad | D81: 3 | E81: RD$1,622,034.65 | F81: =INDIRECT(ADDRESS(ROW(),COLUMN()-2,4))*INDIRECT(ADDRESS(ROW(),COLUMN()-1,4)) -> RD$4,866,103.95
A82: 31162506 | B82: =IFERROR(INDEX(UNSPSCDes,MATCH(INDIRECT(ADDRESS(ROW(),COLUMN()-1,4)),UNSPSCCode,0)),IF(INDIRECT(ADDRESS(ROW(),COLUMN()-1,4))="49101704","Placas","")) -> Soporte de pared | C82: =IFERROR(VLOOKUP("UD",'Informacion '!P:Q,2,FALSE),"") -> Unidad | D82: 5 | E82: RD$35,000.00 | F82: =INDIRECT(ADDRESS(ROW(),COLUMN()-2,4))*INDIRECT(ADDRESS(ROW(),COLUMN()-1,4)) -> RD$175,000.00
A83: 31162506 | B83: =IFERROR(INDEX(UNSPSCDes,MATCH(INDIRECT(ADDRESS(ROW(),COLUMN()-1,4)),UNSPSCCode,0)),IF(INDIRECT(ADDRESS(ROW(),COLUMN()-1,4))="49101701","Medallas","")) -> Soporte de pared | C83: =IFERROR(VLOOKUP("UD",'Informacion '!P:Q,2,FALSE),"") -> Unidad | D83: 18 | E83: RD$3,500.00 | F83: =INDIRECT(ADDRESS(ROW(),COLUMN()-2,4))*INDIRECT(ADDRESS(ROW(),COLUMN()-1,4)) -> RD$63,000.00
A84: 55101515 | B84: =IFERROR(INDEX(UNSPSCDes,MATCH(INDIRECT(ADDRESS(ROW(),COLUMN()-1,4)),UNSPSCCode,0)),IF(INDIRECT(ADDRESS(ROW(),COLUMN()-1,4))="55101515","Material promocional o reportes anuales","")) -> Material promocional o reportes anuales | C84: =IFERROR(VLOOKUP("UD",'Informacion '!P:Q,2,FALSE),"") -> Unidad | D84: 1 | E84: RD$75,000.00 | F84: =INDIRECT(ADDRESS(ROW(),COLUMN()-2,4))*INDIRECT(ADDRESS(ROW(),COLUMN()-1,4)) -> RD$75,000.00
E85: TOTAL COMPRA ESTIMADA | F85: =SUM(Table9[MONTO TOTAL ESTIMADO]) -> RD$5,179,103.95 | H85: =C74 -> Servicios | I85: =E74 -> Sí | J85: =D74 -> Comparacion de Precios
A87: NOMBRE O REFERENCIA DE CONTRATACIÓN | B87: FINALIDAD DE LA CONTRATACIÓN | C87: OBJETO DE CONTRATACIÓN | D87: PROCEDIMIENTO DE SELECCIÓN | E87: DESTINADO A MIPYMES | F87: CÓDIGO SNIP
A88: Congreso Internacional de Gerencia Deportiva | B88: Ejecutar lo planificado | C88: Servicios | D88: Comparacion de Precios | E88: Sí
A89: FECHA DE NECESSIDAD | B89: FECHA INICIO PROCESO DE COMPRA | C89: 2023-03-25 | D89: LUGAR DE EJECUCIÓN / ENTREGA | E89: Región | F89: OZAMA O METROPOLITANA
B90: TRIMESTRE | C90: =IF(C89="","",IF(AND(MONTH(C89)>=1,MONTH(C89)<=3),1,IF(AND(MONTH(C89)>=4,MONTH(C89)<=6),2,IF(AND(MONTH(C89)>=7,MONTH(C89)<=9),3,4)))) -> 1 | E90: Provincia | F90: Distrito Nacional
B91: FECHA PREVISTA ADJUDICACIÓN | C91: 2023-04-20 | E91: Municipio | F91: Distrito Nacional
B92: TRIMESTRE | C92: =IF(C91="","",IF(AND(MONTH(C91)>=1,MONTH(C91)<=3),1,IF(AND(MONTH(C91)>=4,MONTH(C91)<=6),2,IF(AND(MONTH(C91)>=7,MONTH(C91)<=9),3,4)))) -> 2 | E92: Distrito Municipal
A94: CÓDIGO CATÁLOGO | B94: ARTÍCULO | C94: UNIDAD DE MEDIDA | D94: CANTIDAD TOTAL ESTIMADA | E94: PRECIO UNITARIO ESTIMADO | F94: MONTO TOTAL ESTIMADO
A95: 80141607 | B95: =IFERROR(INDEX(UNSPSCDes,MATCH(INDIRECT(ADDRESS(ROW(),COLUMN()-1,4)),UNSPSCCode,0)),IF(INDIRECT(ADDRESS(ROW(),COLUMN()-1,4))="78111808","Alquiler de vehículos","")) -> Gestión de eventos | C95: =IFERROR(VLOOKUP("UD",'Informacion '!P:Q,2,FALSE),"") -> Unidad | D95: 1 | E95: RD$3,115,300.00 | F95: =INDIRECT(ADDRESS(ROW(),COLUMN()-2,4))*INDIRECT(ADDRESS(ROW(),COLUMN()-1,4)) -> RD$3,115,300.00
E96: TOTAL COMPRA ESTIMADA | F96: =SUM(Table10[MONTO TOTAL ESTIMADO]) -> RD$3,115,300.00 | H96: =C88 -> Servicios | I96: =E88 -> Sí | J96: =D88 -> Comparacion de Precios
A98: NOMBRE O REFERENCIA DE CONTRATACIÓN | B98: FINALIDAD DE LA CONTRATACIÓN | C98: OBJETO DE CONTRATACIÓN | D98: PROCEDIMIENTO DE SELECCIÓN | E98: DESTINADO A MIPYMES | F98: CÓDIGO SNIP
A99: Congreso FIEP | B99: Ejecutar lo planificado | C99: Servicios | D99: Comparacion de Precios | E99: Sí
A100: FECHA DE NECESSIDAD | B100: FECHA INICIO PROCESO DE COMPRA | C100: 2023-04-20 | D100: LUGAR DE EJECUCIÓN / ENTREGA | E100: Región | F100: OZAMA O METROPOLITANA
B101: TRIMESTRE | C101: =IF(C100="","",IF(AND(MONTH(C100)>=1,MONTH(C100)<=3),1,IF(AND(MONTH(C100)>=4,MONTH(C100)<=6),2,IF(AND(MONTH(C100)>=7,MONTH(C100)<=9),3,4)))) -> 2 | E101: Provincia | F101: Distrito Nacional
B102: FECHA PREVISTA ADJUDICACIÓN | C102: 2023-05-25 | E102: Municipio | F102: Distrito Nacional
B103: TRIMESTRE | C103: =IF(C102="","",IF(AND(MONTH(C102)>=1,MONTH(C102)<=3),1,IF(AND(MONTH(C102)>=4,MONTH(C102)<=6),2,IF(AND(MONTH(C102)>=7,MONTH(C102)<=9),3,4)))) -> 2 | E103: Distrito Municipal
A105: CÓDIGO CATÁLOGO | B105: ARTÍCULO | C105: UNIDAD DE MEDIDA | D105: CANTIDAD TOTAL ESTIMADA | E105: PRECIO UNITARIO ESTIMADO | F105: MONTO TOTAL ESTIMADO
A106: 80141607 | B106: =IFERROR(INDEX(UNSPSCDes,MATCH(INDIRECT(ADDRESS(ROW(),COLUMN()-1,4)),UNSPSCCode,0)),IF(INDIRECT(ADDRESS(ROW(),COLUMN()-1,4))="86101710","Servicios de formación pedagógica","")) -> Gestión de eventos | C106: =IFERROR(VLOOKUP("UD",'Informacion '!P:Q,2,FALSE),"") -> Unidad | D106: 1 | E106: RD$3,500,000.00 | F106: =INDIRECT(ADDRESS(ROW(),COLUMN()-2,4))*INDIRECT(ADDRESS(ROW(),COLUMN()-1,4)) -> RD$3,500,000.00
A107: 82121503 | B107: =IFERROR(INDEX(UNSPSCDes,MATCH(INDIRECT(ADDRESS(ROW(),COLUMN()-1,4)),UNSPSCCode,0)),IF(INDIRECT(ADDRESS(ROW(),COLUMN()-1,4))="86101710","Servicios de formación pedagógica","")) -> Impresión digital | C107: =IFERROR(VLOOKUP("UD",'Informacion '!P:Q,2,FALSE),"") -> Unidad | D107: 1 | E107: RD$500,000.00 | F107: =INDIRECT(ADDRESS(ROW(),COLUMN()-2,4))*INDIRECT(ADDRESS(ROW(),COLUMN()-1,4)) -> RD$500,000.00
A108: 90111503 | B108: =IFERROR(INDEX(UNSPSCDes,MATCH(INDIRECT(ADDRESS(ROW(),COLUMN()-1,4)),UNSPSCCode,0)),IF(INDIRECT(ADDRESS(ROW(),COLUMN()-1,4))="86101710","Servicios de formación pedagógica","")) -> Hospedajes de cama y desayuno | C108: =IFERROR(VLOOKUP("UD",'Informacion '!P:Q,2,FALSE),"") -> Unidad | D108: 1 | E108: RD$3,500,000.00 | F108: =INDIRECT(ADDRESS(ROW(),COLUMN()-2,4))*INDIRECT(ADDRESS(ROW(),COLUMN()-1,4)) -> RD$3,500,000.00
E109: TOTAL COMPRA ESTIMADA | F109: =SUM(Table11[MONTO TOTAL ESTIMADO]) -> RD$7,500,000.00 | H109: =C99 -> Servicios | I109: =E99 -> Sí | J109: =D99 -> Comparacion de Precios
A111: NOMBRE O REFERENCIA DE CONTRATACIÓN | B111: FINALIDAD DE LA CONTRATACIÓN | C111: OBJETO DE CONTRATACIÓN | D111: PROCEDIMIENTO DE SELECCIÓN | E111: DESTINADO A MIPYMES | F111: CÓDIGO SNIP
A112: Concurso de Clases de Calidad de Educacion Fisica | B112: Ejecutar lo planificado | C112: Servicios | D112: Comparacion de Precios | E112: Sí
A113: FECHA DE NECESSIDAD | B113: FECHA INICIO PROCESO DE COMPRA | C113: 2023-02-05 | D113: LUGAR DE EJECUCIÓN / ENTREGA | E113: Región | F113: OZAMA O METROPOLITANA
B114: TRIMESTRE | C114: =IF(C113="","",IF(AND(MONTH(C113)>=1,MONTH(C113)<=3),1,IF(AND(MONTH(C113)>=4,MONTH(C113)<=6),2,IF(AND(MONTH(C113)>=7,MONTH(C113)<=9),3,4)))) -> 1 | E114: Provincia | F114: Distrito Nacional
B115: FECHA PREVISTA ADJUDICACIÓN | C115: 2023-02-28 | E115: Municipio | F115: Distrito Nacional
B116: TRIMESTRE | C116: =IF(C115="","",IF(AND(MONTH(C115)>=1,MONTH(C115)<=3),1,IF(AND(MONTH(C115)>=4,MONTH(C115)<=6),2,IF(AND(MONTH(C115)>=7,MONTH(C115)<=9),3,4)))) -> 1 | E116: Distrito Municipal
A118: CÓDIGO CATÁLOGO | B118: ARTÍCULO | C118: UNIDAD DE MEDIDA | D118: CANTIDAD TOTAL ESTIMADA | E118: PRECIO UNITARIO ESTIMADO | F118: MONTO TOTAL ESTIMADO
A119: 80141607 | B119: =IFERROR(INDEX(UNSPSCDes,MATCH(INDIRECT(ADDRESS(ROW(),COLUMN()-1,4)),UNSPSCCode,0)),IF(INDIRECT(ADDRESS(ROW(),COLUMN()-1,4))="86101710","Servicios de formación pedagógica","")) -> Gestión de eventos | C119: =IFERROR(VLOOKUP("UD",'Informacion '!P:Q,2,FALSE),"") -> Unidad | D119: 1 | E119: RD$3,500,000.00 | F119: =INDIRECT(ADDRESS(ROW(),COLUMN()-2,4))*INDIRECT(ADDRESS(ROW(),COLUMN()-1,4)) -> RD$3,500,000.00
A120: 31162506 | B120: =IFERROR(INDEX(UNSPSCDes,MATCH(INDIRECT(ADDRESS(ROW(),COLUMN()-1,4)),UNSPSCCode,0)),IF(INDIRECT(ADDRESS(ROW(),COLUMN()-1,4))="86101710","Servicios de formación pedagógica","")) -> Soporte de pared | C120: =IFERROR(VLOOKUP("UD",'Informacion '!P:Q,2,FALSE),"") -> Unidad | D120: 1 | E120: RD$1,500,000.00 | F120: =INDIRECT(ADDRESS(ROW(),COLUMN()-2,4))*INDIRECT(ADDRESS(ROW(),COLUMN()-1,4)) -> RD$1,500,000.00
A121: 49211803 | B121: =IFERROR(INDEX(UNSPSCDes,MATCH(INDIRECT(ADDRESS(ROW(),COLUMN()-1,4)),UNSPSCCode,0)),IF(INDIRECT(ADDRESS(ROW(),COLUMN()-1,4))="86101710","Servicios de formación pedagógica","")) -> Equipos de orientación | C121: =IFERROR(VLOOKUP("UD",'Informacion '!P:Q,2,FALSE),"") -> Unidad | D121: 1 | E121: RD$2,196,000.00 | F121: =INDIRECT(ADDRESS(ROW(),COLUMN()-2,4))*INDIRECT(ADDRESS(ROW(),COLUMN()-1,4)) -> RD$2,196,000.00
A122: 90111503 | B122: =IFERROR(INDEX(UNSPSCDes,MATCH(INDIRECT(ADDRESS(ROW(),COLUMN()-1,4)),UNSPSCCode,0)),IF(INDIRECT(ADDRESS(ROW(),COLUMN()-1,4))="86101710","Servicios de formación pedagógica","")) -> Hospedajes de cama y desayuno | C122: =IFERROR(VLOOKUP("UD",'Informacion '!P:Q,2,FALSE),"") -> Unidad | D122: 1 | E122: RD$1,000,000.00 | F122: =INDIRECT(ADDRESS(ROW(),COLUMN()-2,4))*INDIRECT(ADDRESS(ROW(),COLUMN()-1,4)) -> RD$1,000,000.00
E123: TOTAL COMPRA ESTIMADA | F123: =SUM(Table12[MONTO TOTAL ESTIMADO]) -> RD$8,196,000.00 | H123: =C112 -> Servicios | I123: =E112 -> Sí | J123: =D112 -> Comparacion de Precios
A125: NOMBRE O REFERENCIA DE CONTRATACIÓN | B125: FINALIDAD DE LA CONTRATACIÓN | C125: OBJETO DE CONTRATACIÓN | D125: PROCEDIMIENTO DE SELECCIÓN | E125: DESTINADO A MIPYMES | F125: CÓDIGO SNIP
A126: Actualizacion Docentes, Capacitaciones y Talleres En: Desfile Escolar , Deporte Escolar,Juegos Pre-Deportiv, Clubes Escolares,Centro de Iniciación Deportiva | B126: Ejecutar lo planificado | C126: Servicios | D126: Comparacion de Precios | E126: Sí
A127: FECHA DE NECESSIDAD | B127: FECHA INICIO PROCESO DE COMPRA | C127: 2023-02-05 | D127: LUGAR DE EJECUCIÓN / ENTREGA | E127: Región | F127: OZAMA O METROPOLITANA
B128: TRIMESTRE | C128: =IF(C127="","",IF(AND(MONTH(C127)>=1,MONTH(C127)<=3),1,IF(AND(MONTH(C127)>=4,MONTH(C127)<=6),2,IF(AND(MONTH(C127)>=7,MONTH(C127)<=9),3,4)))) -> 1 | E128: Provincia | F128: Distrito Nacional
B129: FECHA PREVISTA ADJUDICACIÓN | C129: 2023-02-28 | E129: Municipio | F129: Distrito Nacional
B130: TRIMESTRE | C130: =IF(C129="","",IF(AND(MONTH(C129)>=1,MONTH(C129)<=3),1,IF(AND(MONTH(C129)>=4,MONTH(C129)<=6),2,IF(AND(MONTH(C129)>=7,MONTH(C129)<=9),3,4)))) -> 1 | E130: Distrito Municipal
A132: CÓDIGO CATÁLOGO | B132: ARTÍCULO | C132: UNIDAD DE MEDIDA | D132: CANTIDAD TOTAL ESTIMADA | E132: PRECIO UNITARIO ESTIMADO | F132: MONTO TOTAL ESTIMADO
A133: 86101710 | B133: =IFERROR(INDEX(UNSPSCDes,MATCH(INDIRECT(ADDRESS(ROW(),COLUMN()-1,4)),UNSPSCCode,0)),IF(INDIRECT(ADDRESS(ROW(),COLUMN()-1,4))="86101710","Servicios de formación pedagógica","")) -> Servicios de formación pedagógica | C133: =IFERROR(VLOOKUP("UD",'Informacion '!P:Q,2,FALSE),"") -> Unidad | D133: 2 | E133: RD$1,500,000.00 | F133: =INDIRECT(ADDRESS(ROW(),COLUMN()-2,4))*INDIRECT(ADDRESS(ROW(),COLUMN()-1,4)) -> RD$3,000,000.00
E134: TOTAL COMPRA ESTIMADA | F134: =SUM(Table13[MONTO TOTAL ESTIMADO]) -> RD$3,000,000.00 | H134: =C126 -> Servicios | I134: =E126 -> Sí | J134: =D126 -> Comparacion de Precios
A136: NOMBRE O REFERENCIA DE CONTRATACIÓN | B136: FINALIDAD DE LA CONTRATACIÓN | C136: OBJETO DE CONTRATACIÓN | D136: PROCEDIMIENTO DE SELECCIÓN | E136: DESTINADO A MIPYMES | F136: CÓDIGO SNIP
A137: Normativa Nacional para la valoración de la aptitud física | B137: Ejecutar lo planificado | C137: Servicios | D137: Comparacion de Precios | E137: Sí
A138: FECHA DE NECESSIDAD | B138: FECHA INICIO PROCESO DE COMPRA | C138: 2023-02-05 | D138: LUGAR DE EJECUCIÓN / ENTREGA | E138: Región | F138: OZAMA O METROPOLITANA
B139: TRIMESTRE | C139: =IF(C138="","",IF(AND(MONTH(C138)>=1,MONTH(C138)<=3),1,IF(AND(MONTH(C138)>=4,MONTH(C138)<=6),2,IF(AND(MONTH(C138)>=7,MONTH(C138)<=9),3,4)))) -> 1 | E139: Provincia | F139: Distrito Nacional
B140: FECHA PREVISTA ADJUDICACIÓN | C140: 2023-02-28 | E140: Municipio | F140: Distrito Nacional
B141: TRIMESTRE | C141: =IF(C140="","",IF(AND(MONTH(C140)>=1,MONTH(C140)<=3),1,IF(AND(MONTH(C140)>=4,MONTH(C140)<=6),2,IF(AND(MONTH(C140)>=7,MONTH(C140)<=9),3,4)))) -> 1 | E141: Distrito Municipal
A143: CÓDIGO CATÁLOGO | B143: ARTÍCULO | C143: UNIDAD DE MEDIDA | D143: CANTIDAD TOTAL ESTIMADA | E143: PRECIO UNITARIO ESTIMADO | F143: MONTO TOTAL ESTIMADO
A144: 90101603 | B144: =IFERROR(INDEX(UNSPSCDes,MATCH(INDIRECT(ADDRESS(ROW(),COLUMN()-1,4)),UNSPSCCode,0)),IF(INDIRECT(ADDRESS(ROW(),COLUMN()-1,4))="90101603","Servicios de cáterin","")) -> Servicios de cáterin | C144: =IFERROR(VLOOKUP("UD",'Informacion '!P:Q,2,FALSE),"") -> Unidad | D144: 2700 | E144: RD$940.00 | F144: =INDIRECT(ADDRESS(ROW(),COLUMN()-2,4))*INDIRECT(ADDRESS(ROW(),COLUMN()-1,4)) -> RD$2,538,000.00
A145: 78111808 | B145: =IFERROR(INDEX(UNSPSCDes,MATCH(INDIRECT(ADDRESS(ROW(),COLUMN()-1,4)),UNSPSCCode,0)),IF(INDIRECT(ADDRESS(ROW(),COLUMN()-1,4))="90101603","Servicios de cáterin","")) -> Alquiler de vehículos | C145: =IFERROR(VLOOKUP("UD",'Informacion '!P:Q,2,FALSE),"") -> Unidad | D145: 10 | E145: RD$55,000.00 | F145: =INDIRECT(ADDRESS(ROW(),COLUMN()-2,4))*INDIRECT(ADDRESS(ROW(),COLUMN()-1,4)) -> RD$550,000.00
A146: 53101602 | B146: =IFERROR(INDEX(UNSPSCDes,MATCH(INDIRECT(ADDRESS(ROW(),COLUMN()-1,4)),UNSPSCCode,0)),IF(INDIRECT(ADDRESS(ROW(),COLUMN()-1,4))="90101603","Servicios de cáterin","")) -> Camisas para hombre | C146: =IFERROR(VLOOKUP("UD",'Informacion '!P:Q,2,FALSE),"") -> Unidad | D146: =5900+400 -> 6300 | E146: RD$600.00 | F146: =INDIRECT(ADDRESS(ROW(),COLUMN()-2,4))*INDIRECT(ADDRESS(ROW(),COLUMN()-1,4)) -> RD$3,780,000.00
E147: TOTAL COMPRA ESTIMADA | F147: =SUM(Table14[MONTO TOTAL ESTIMADO]) -> RD$6,868,000.00 | H147: =C137 -> Servicios | I147: =E137 -> Sí | J147: =D137 -> Comparacion de Precios
A149: NOMBRE O REFERENCIA DE CONTRATACIÓN | B149: FINALIDAD DE LA CONTRATACIÓN | C149: OBJETO DE CONTRATACIÓN | D149: PROCEDIMIENTO DE SELECCIÓN | E149: DESTINADO A MIPYMES | F149: CÓDIGO SNIP
A150: Campamento de Verano | B150: Ejecutar lo planificado | C150: Servicios | D150: Comparacion de Precios | E150: Sí
A151: FECHA DE NECESSIDAD | B151: FECHA INICIO PROCESO DE COMPRA | C151: 2023-04-20 | D151: LUGAR DE EJECUCIÓN / ENTREGA | E151: Región | F151: OZAMA O METROPOLITANA
B152: TRIMESTRE | C152: =IF(C151="","",IF(AND(MONTH(C151)>=1,MONTH(C151)<=3),1,IF(AND(MONTH(C151)>=4,MONTH(C151)<=6),2,IF(AND(MONTH(C151)>=7,MONTH(C151)<=9),3,4)))) -> 2 | E152: Provincia | F152: Distrito Nacional
B153: FECHA PREVISTA ADJUDICACIÓN | C153: 2023-05-25 | E153: Municipio | F153: Distrito Nacional
B154: TRIMESTRE | C154: =IF(C153="","",IF(AND(MONTH(C153)>=1,MONTH(C153)<=3),1,IF(AND(MONTH(C153)>=4,MONTH(C153)<=6),2,IF(AND(MONTH(C153)>=7,MONTH(C153)<=9),3,4)))) -> 2 | E154: Distrito Municipal
A156: CÓDIGO CATÁLOGO | B156: ARTÍCULO | C156: UNIDAD DE MEDIDA | D156: CANTIDAD TOTAL ESTIMADA | E156: PRECIO UNITARIO ESTIMADO | F156: MONTO TOTAL ESTIMADO
A157: 90101603 | B157: =IFERROR(INDEX(UNSPSCDes,MATCH(INDIRECT(ADDRESS(ROW(),COLUMN()-1,4)),UNSPSCCode,0)),IF(INDIRECT(ADDRESS(ROW(),COLUMN()-1,4))="80161507","Servicios audiovisuales","")) -> Servicios de cáterin | C157: =IFERROR(VLOOKUP("UD",'Informacion '!P:Q,2,FALSE),"") -> Unidad | D157: 5536 | E157: RD$1,700.00 | F157: =INDIRECT(ADDRESS(ROW(),COLUMN()-2,4))*INDIRECT(ADDRESS(ROW(),COLUMN()-1,4)) -> RD$9,411,200.00
A158: 78111808 | B158: =IFERROR(INDEX(UNSPSCDes,MATCH(INDIRECT(ADDRESS(ROW(),COLUMN()-1,4)),UNSPSCCode,0)),IF(INDIRECT(ADDRESS(ROW(),COLUMN()-1,4))="80161507","Servicios audiovisuales","")) -> Alquiler de vehículos | C158: =IFERROR(VLOOKUP("UD",'Informacion '!P:Q,2,FALSE),"") -> Unidad | D158: 1 | E158: RD$3,575,600.00 | F158: =INDIRECT(ADDRESS(ROW(),COLUMN()-2,4))*INDIRECT(ADDRESS(ROW(),COLUMN()-1,4)) -> RD$3,575,600.00
A159: 53101602 | B159: =IFERROR(INDEX(UNSPSCDes,MATCH(INDIRECT(ADDRESS(ROW(),COLUMN()-1,4)),UNSPSCCode,0)),IF(INDIRECT(ADDRESS(ROW(),COLUMN()-1,4))="80161507","Servicios audiovisuales","")) -> Camisas para hombre | C159: =IFERROR(VLOOKUP("UD",'Informacion '!P:Q,2,FALSE),"") -> Unidad | D159: 6710 | E159: RD$600.00 | F159: =INDIRECT(ADDRESS(ROW(),COLUMN()-2,4))*INDIRECT(ADDRESS(ROW(),COLUMN()-1,4)) -> RD$4,026,000.00
E160: TOTAL COMPRA ESTIMADA | F160: =SUM(Table15[MONTO TOTAL ESTIMADO]) -> RD$17,012,800.00 | H160: =C150 -> Servicios | I160: =E150 -> Sí | J160: =D150 -> Comparacion de Precios
A162: NOMBRE O REFERENCIA DE CONTRATACIÓN | B162: FINALIDAD DE LA CONTRATACIÓN | C162: OBJETO DE CONTRATACIÓN | D162: PROCEDIMIENTO DE SELECCIÓN | E162: DESTINADO A MIPYMES | F162: CÓDIGO SNIP
A163: Gestion de Riesgos y Primeros Auxilios | B163: Ejecutar lo planificado | C163: Servicios | D163: Comparacion de Precios | E163: Sí
A164: FECHA DE NECESSIDAD | B164: FECHA INICIO PROCESO DE COMPRA | C164: 2023-04-20 | D164: LUGAR DE EJECUCIÓN / ENTREGA | E164: Región | F164: OZAMA O METROPOLITANA
B165: TRIMESTRE | C165: =IF(C164="","",IF(AND(MONTH(C164)>=1,MONTH(C164)<=3),1,IF(AND(MONTH(C164)>=4,MONTH(C164)<=6),2,IF(AND(MONTH(C164)>=7,MONTH(C164)<=9),3,4)))) -> 2 | E165: Provincia | F165: Distrito Nacional
B166: FECHA PREVISTA ADJUDICACIÓN | C166: 2023-05-25 | E166: Municipio | F166: Distrito Nacional
B167: TRIMESTRE | C167: =IF(C166="","",IF(AND(MONTH(C166)>=1,MONTH(C166)<=3),1,IF(AND(MONTH(C166)>=4,MONTH(C166)<=6),2,IF(AND(MONTH(C166)>=7,MONTH(C166)<=9),3,4)))) -> 2 | E167: Distrito Municipal
A169: CÓDIGO CATÁLOGO | B169: ARTÍCULO | C169: UNIDAD DE MEDIDA | D169: CANTIDAD TOTAL ESTIMADA | E169: PRECIO UNITARIO ESTIMADO | F169: MONTO TOTAL ESTIMADO
A170: 86101710 | B170: =IFERROR(INDEX(UNSPSCDes,MATCH(INDIRECT(ADDRESS(ROW(),COLUMN()-1,4)),UNSPSCCode,0)),IF(INDIRECT(ADDRESS(ROW(),COLUMN()-1,4))="78111808","Alquiler de vehículos","")) -> Servicios de formación pedagógica | C170: =IFERROR(VLOOKUP("UD",'Informacion '!P:Q,2,FALSE),"") -> Unidad | D170: 4600 | E170: RD$1,086.96 | F170: =INDIRECT(ADDRESS(ROW(),COLUMN()-2,4))*INDIRECT(ADDRESS(ROW(),COLUMN()-1,4)) -> RD$5,000,000.00
E171: TOTAL COMPRA ESTIMADA | F171: =SUM(Table16[MONTO TOTAL ESTIMADO]) -> RD$5,000,000.00 | H171: =C163 -> Servicios | I171: =E163 -> Sí | J171: =D163 -> Comparacion de Precios
A173: NOMBRE O REFERENCIA DE CONTRATACIÓN | B173: FINALIDAD DE LA CONTRATACIÓN | C173: OBJETO DE CONTRATACIÓN | D173: PROCEDIMIENTO DE SELECCIÓN | E173: DESTINADO A MIPYMES | F173: CÓDIGO SNIP
A174: Programa Mi Escuela En Forma | B174: Ejecutar lo planificado | C174: Servicios | D174: Comparacion de Precios | E174: Sí
A175: FECHA DE NECESSIDAD | B175: FECHA INICIO PROCESO DE COMPRA | C175: 2023-02-05 | D175: LUGAR DE EJECUCIÓN / ENTREGA | E175: Región | F175: OZAMA O METROPOLITANA
B176: TRIMESTRE | C176: =IF(C175="","",IF(AND(MONTH(C175)>=1,MONTH(C175)<=3),1,IF(AND(MONTH(C175)>=4,MONTH(C175)<=6),2,IF(AND(MONTH(C175)>=7,MONTH(C175)<=9),3,4)))) -> 1 | E176: Provincia | F176: Distrito Nacional
B177: FECHA PREVISTA ADJUDICACIÓN | C177: 2023-03-02 | E177: Municipio | F177: Distrito Nacional
B178: TRIMESTRE | C178: =IF(C177="","",IF(AND(MONTH(C177)>=1,MONTH(C177)<=3),1,IF(AND(MONTH(C177)>=4,MONTH(C177)<=6),2,IF(AND(MONTH(C177)>=7,MONTH(C177)<=9),3,4)))) -> 1 | E178: Distrito Municipal
A180: CÓDIGO CATÁLOGO | B180: ARTÍCULO | C180: UNIDAD DE MEDIDA | D180: CANTIDAD TOTAL ESTIMADA | E180: PRECIO UNITARIO ESTIMADO | F180: MONTO TOTAL ESTIMADO
A181: 53101602 | B181: =IFERROR(INDEX(UNSPSCDes,MATCH(INDIRECT(ADDRESS(ROW(),COLUMN()-1,4)),UNSPSCCode,0)),IF(INDIRECT(ADDRESS(ROW(),COLUMN()-1,4))="90101603","Servicios de cáterin","")) -> Camisas para hombre | C181: =IFERROR(VLOOKUP("UD",'Informacion '!P:Q,2,FALSE),"") -> Unidad | D181: 4600 | E181: RD$600.00 | F181: =INDIRECT(ADDRESS(ROW(),COLUMN()-2,4))*INDIRECT(ADDRESS(ROW(),COLUMN()-1,4)) -> RD$2,760,000.00
E182: TOTAL COMPRA ESTIMADA | F182: =SUM(Table17[MONTO TOTAL ESTIMADO]) -> RD$2,760,000.00 | H182: =C174 -> Servicios | I182: =E174 -> Sí | J182: =D174 -> Comparacion de Precios
A184: NOMBRE O REFERENCIA DE CONTRATACIÓN | B184: FINALIDAD DE LA CONTRATACIÓN | C184: OBJETO DE CONTRATACIÓN | D184: PROCEDIMIENTO DE SELECCIÓN | E184: DESTINADO A MIPYMES | F184: CÓDIGO SNIP
A185: Desfile Escolar | B185: Ejecutar lo planificado | C185: Servicios | D185: Comparacion de Precios | E185: Sí
A186: FECHA DE NECESSIDAD | B186: FECHA INICIO PROCESO DE COMPRA | C186: 2023-02-05 | D186: LUGAR DE EJECUCIÓN / ENTREGA | E186: Región | F186: OZAMA O METROPOLITANA
B187: TRIMESTRE | C187: =IF(C186="","",IF(AND(MONTH(C186)>=1,MONTH(C186)<=3),1,IF(AND(MONTH(C186)>=4,MONTH(C186)<=6),2,IF(AND(MONTH(C186)>=7,MONTH(C186)<=9),3,4)))) -> 1 | E187: Provincia | F187: Distrito Nacional
B188: FECHA PREVISTA ADJUDICACIÓN | C188: 2023-03-02 | E188: Municipio | F188: Distrito Nacional
B189: TRIMESTRE | C189: =IF(C188="","",IF(AND(MONTH(C188)>=1,MONTH(C188)<=3),1,IF(AND(MONTH(C188)>=4,MONTH(C188)<=6),2,IF(AND(MONTH(C188)>=7,MONTH(C188)<=9),3,4)))) -> 1 | E189: Distrito Municipal
A191: CÓDIGO CATÁLOGO | B191: ARTÍCULO | C191: UNIDAD DE MEDIDA | D191: CANTIDAD TOTAL ESTIMADA | E191: PRECIO UNITARIO ESTIMADO | F191: MONTO TOTAL ESTIMADO
A192: 78111808 | B192: =IFERROR(INDEX(UNSPSCDes,MATCH(INDIRECT(ADDRESS(ROW(),COLUMN()-1,4)),UNSPSCCode,0)),IF(INDIRECT(ADDRESS(ROW(),COLUMN()-1,4))="80141607","Gestión de eventos","")) -> Alquiler de vehículos | C192: =IFERROR(VLOOKUP("UD",'Informacion '!P:Q,2,FALSE),"") -> Unidad | D192: 1 | E192: RD$2,013,000.00 | F192: =INDIRECT(ADDRESS(ROW(),COLUMN()-2,4))*INDIRECT(ADDRESS(ROW(),COLUMN()-1,4)) -> RD$2,013,000.00
A193: 90101603 | B193: =IFERROR(INDEX(UNSPSCDes,MATCH(INDIRECT(ADDRESS(ROW(),COLUMN()-1,4)),UNSPSCCode,0)),IF(INDIRECT(ADDRESS(ROW(),COLUMN()-1,4))="80141607","Gestión de eventos","")) -> Servicios de cáterin | C193: =IFERROR(VLOOKUP("UD",'Informacion '!P:Q,2,FALSE),"") -> Unidad | D193: 1 | E193: =1310890+976000 -> RD$2,286,890.00 | F193: =INDIRECT(ADDRESS(ROW(),COLUMN()-2,4))*INDIRECT(ADDRESS(ROW(),COLUMN()-1,4)) -> RD$2,286,890.00
E194: TOTAL COMPRA ESTIMADA | F194: =SUM(Table18[MONTO TOTAL ESTIMADO]) -> RD$4,299,890.00 | H194: =C185 -> Servicios | I194: =E185 -> Sí | J194: =D185 -> Comparacion de Precios
A196: NOMBRE O REFERENCIA DE CONTRATACIÓN | B196: FINALIDAD DE LA CONTRATACIÓN | C196: OBJETO DE CONTRATACIÓN | D196: PROCEDIMIENTO DE SELECCIÓN | E196: DESTINADO A MIPYMES | F196: CÓDIGO SNIP
A197: Festival de Gimnasia Escolar | B197: Ejecutar lo planificado | C197: Servicios | D197: Comparacion de Precios | E197: Sí
A198: FECHA DE NECESSIDAD | B198: FECHA INICIO PROCESO DE COMPRA | C198: 2023-04-20 | D198: LUGAR DE EJECUCIÓN / ENTREGA | E198: Región | F198: OZAMA O METROPOLITANA
B199: TRIMESTRE | C199: =IF(C198="","",IF(AND(MONTH(C198)>=1,MONTH(C198)<=3),1,IF(AND(MONTH(C198)>=4,MONTH(C198)<=6),2,IF(AND(MONTH(C198)>=7,MONTH(C198)<=9),3,4)))) -> 2 | E199: Provincia | F199: Distrito Nacional
B200: FECHA PREVISTA ADJUDICACIÓN | C200: 2023-05-26 | E200: Municipio | F200: Distrito Nacional
B201: TRIMESTRE | C201: =IF(C200="","",IF(AND(MONTH(C200)>=1,MONTH(C200)<=3),1,IF(AND(MONTH(C200)>=4,MONTH(C200)<=6),2,IF(AND(MONTH(C200)>=7,MONTH(C200)<=9),3,4)))) -> 2 | E201: Distrito Municipal
A203: CÓDIGO CATÁLOGO | B203: ARTÍCULO | C203: UNIDAD DE MEDIDA | D203: CANTIDAD TOTAL ESTIMADA | E203: PRECIO UNITARIO ESTIMADO | F203: MONTO TOTAL ESTIMADO
A204: 82121503 | B204: =IFERROR(INDEX(UNSPSCDes,MATCH(INDIRECT(ADDRESS(ROW(),COLUMN()-1,4)),UNSPSCCode,0)),IF(INDIRECT(ADDRESS(ROW(),COLUMN()-1,4))="82121503","Impresión digital","")) -> Impresión digital | C204: =IFERROR(VLOOKUP("UD",'Informacion '!P:Q,2,FALSE),"") -> Unidad | D204: 1000 | E204: RD$536.00 | F204: =INDIRECT(ADDRESS(ROW(),COLUMN()-2,4))*INDIRECT(ADDRESS(ROW(),COLUMN()-1,4)) -> RD$536,000.00
A205: 90101603 | B205: =IFERROR(INDEX(UNSPSCDes,MATCH(INDIRECT(ADDRESS(ROW(),COLUMN()-1,4)),UNSPSCCode,0)),IF(INDIRECT(ADDRESS(ROW(),COLUMN()-1,4))="82121503","Impresión digital","")) -> Servicios de cáterin | C205: =IFERROR(VLOOKUP("UD",'Informacion '!P:Q,2,FALSE),"") -> Unidad | D205: 900 | E205: RD$1,700.00 | F205: =INDIRECT(ADDRESS(ROW(),COLUMN()-2,4))*INDIRECT(ADDRESS(ROW(),COLUMN()-1,4)) -> RD$1,530,000.00
A206: 90111503 | B206: =IFERROR(INDEX(UNSPSCDes,MATCH(INDIRECT(ADDRESS(ROW(),COLUMN()-1,4)),UNSPSCCode,0)),IF(INDIRECT(ADDRESS(ROW(),COLUMN()-1,4))="82121503","Impresión digital","")) -> Hospedajes de cama y desayuno | C206: =IFERROR(VLOOKUP("UD",'Informacion '!P:Q,2,FALSE),"") -> Unidad | D206: 828 | E206: RD$4,000.00 | F206: =INDIRECT(ADDRESS(ROW(),COLUMN()-2,4))*INDIRECT(ADDRESS(ROW(),COLUMN()-1,4)) -> RD$3,312,000.00
A207: 78111808 | B207: =IFERROR(INDEX(UNSPSCDes,MATCH(INDIRECT(ADDRESS(ROW(),COLUMN()-1,4)),UNSPSCCode,0)),IF(INDIRECT(ADDRESS(ROW(),COLUMN()-1,4))="82121503","Impresión digital","")) -> Alquiler de vehículos | C207: =IFERROR(VLOOKUP("UD",'Informacion '!P:Q,2,FALSE),"") -> Unidad | D207: 828 | E207: RD$1,000.00 | F207: =INDIRECT(ADDRESS(ROW(),COLUMN()-2,4))*INDIRECT(ADDRESS(ROW(),COLUMN()-1,4)) -> RD$828,000.00
A208: 53101602 | B208: =IFERROR(INDEX(UNSPSCDes,MATCH(INDIRECT(ADDRESS(ROW(),COLUMN()-1,4)),UNSPSCCode,0)),IF(INDIRECT(ADDRESS(ROW(),COLUMN()-1,4))="82121503","Impresión digital","")) -> Camisas para hombre | C208: =IFERROR(VLOOKUP("UD",'Informacion '!P:Q,2,FALSE),"") -> Unidad | D208: 828 | E208: RD$1,500.00 | F208: =INDIRECT(ADDRESS(ROW(),COLUMN()-2,4))*INDIRECT(ADDRESS(ROW(),COLUMN()-1,4)) -> RD$1,242,000.00
E209: TOTAL COMPRA ESTIMADA | F209: =SUM(Table19[MONTO TOTAL ESTIMADO]) -> RD$7,448,000.00 | H209: =C197 -> Servicios | I209: =E197 -> Sí | J209: =D197 -> Comparacion de Precios
A211: NOMBRE O REFERENCIA DE CONTRATACIÓN | B211: FINALIDAD DE LA CONTRATACIÓN | C211: OBJETO DE CONTRATACIÓN | D211: PROCEDIMIENTO DE SELECCIÓN | E211: DESTINADO A MIPYMES | F211: CÓDIGO SNIP
A212: Campamento Recreativo Ecologico | B212: Ejecutar lo planificado | C212: Servicios | D212: Comparacion de Precios | E212: Sí
A213: FECHA DE NECESSIDAD | B213: FECHA INICIO PROCESO DE COMPRA | C213: 2023-04-20 | D213: LUGAR DE EJECUCIÓN / ENTREGA | E213: Región | F213: OZAMA O METROPOLITANA
B214: TRIMESTRE | C214: =IF(C213="","",IF(AND(MONTH(C213)>=1,MONTH(C213)<=3),1,IF(AND(MONTH(C213)>=4,MONTH(C213)<=6),2,IF(AND(MONTH(C213)>=7,MONTH(C213)<=9),3,4)))) -> 2 | E214: Provincia | F214: Distrito Nacional
B215: FECHA PREVISTA ADJUDICACIÓN | C215: 2023-05-26 | E215: Municipio | F215: Distrito Nacional
B216: TRIMESTRE | C216: =IF(C215="","",IF(AND(MONTH(C215)>=1,MONTH(C215)<=3),1,IF(AND(MONTH(C215)>=4,MONTH(C215)<=6),2,IF(AND(MONTH(C215)>=7,MONTH(C215)<=9),3,4)))) -> 2 | E216: Distrito Municipal
A218: CÓDIGO CATÁLOGO | B218: ARTÍCULO | C218: UNIDAD DE MEDIDA | D218: CANTIDAD TOTAL ESTIMADA | E218: PRECIO UNITARIO ESTIMADO | F218: MONTO TOTAL ESTIMADO
A219: 78111808 | B219: =IFERROR(INDEX(UNSPSCDes,MATCH(INDIRECT(ADDRESS(ROW(),COLUMN()-1,4)),UNSPSCCode,0)),IF(INDIRECT(ADDRESS(ROW(),COLUMN()-1,4))="90131501","Actuaciones u obras teatrales","")) -> Alquiler de vehículos | C219: =IFERROR(VLOOKUP("UD",'Informacion '!P:Q,2,FALSE),"") -> Unidad | D219: 20 | E219: RD$65,000.00 | F219: =INDIRECT(ADDRESS(ROW(),COLUMN()-2,4))*INDIRECT(ADDRESS(ROW(),COLUMN()-1,4)) -> RD$1,300,000.00
A220: 90101603 | B220: =IFERROR(INDEX(UNSPSCDes,MATCH(INDIRECT(ADDRESS(ROW(),COLUMN()-1,4)),UNSPSCCode,0)),IF(INDIRECT(ADDRESS(ROW(),COLUMN()-1,4))="90131501","Actuaciones u obras teatrales","")) -> Servicios de cáterin | C220: =IFERROR(VLOOKUP("UD",'Informacion '!P:Q,2,FALSE),"") -> Unidad | D220: 2000 | E220: RD$600.00 | F220: =INDIRECT(ADDRESS(ROW(),COLUMN()-2,4))*INDIRECT(ADDRESS(ROW(),COLUMN()-1,4)) -> RD$1,200,000.00
A221: 53101602 | B221: =IFERROR(INDEX(UNSPSCDes,MATCH(INDIRECT(ADDRESS(ROW(),COLUMN()-1,4)),UNSPSCCode,0)),IF(INDIRECT(ADDRESS(ROW(),COLUMN()-1,4))="90131501","Actuaciones u obras teatrales","")) -> Camisas para hombre | C221: =IFERROR(VLOOKUP("UD",'Informacion '!P:Q,2,FALSE),"") -> Unidad | D221: 2000 | E221: RD$1,700.00 | F221: =INDIRECT(ADDRESS(ROW(),COLUMN()-2,4))*INDIRECT(ADDRESS(ROW(),COLUMN()-1,4)) -> RD$3,400,000.00
E222: TOTAL COMPRA ESTIMADA | F222: =SUM(Table20[MONTO TOTAL ESTIMADO]) -> RD$5,900,000.00 | H222: =C212 -> Servicios | I222: =E212 -> Sí | J222: =D212 -> Comparacion de Precios
A224: NOMBRE O REFERENCIA DE CONTRATACIÓN | B224: FINALIDAD DE LA CONTRATACIÓN | C224: OBJETO DE CONTRATACIÓN | D224: PROCEDIMIENTO DE SELECCIÓN | E224: DESTINADO A MIPYMES | F224: CÓDIGO SNIP
A225: Liga Intercolegiar Ajedrez,Baloncesto, Futbol y Voleibol | B225: Ejecutar lo planificado | C225: Servicios | D225: Licitacion Publica | E225: Sí
A226: FECHA DE NECESSIDAD | B226: FECHA INICIO PROCESO DE COMPRA | C226: 2023-04-20 | D226: LUGAR DE EJECUCIÓN / ENTREGA | E226: Región | F226: OZAMA O METROPOLITANA
B227: TRIMESTRE | C227: =IF(C226="","",IF(AND(MONTH(C226)>=1,MONTH(C226)<=3),1,IF(AND(MONTH(C226)>=4,MONTH(C226)<=6),2,IF(AND(MONTH(C226)>=7,MONTH(C226)<=9),3,4)))) -> 2 | E227: Provincia | F227: Distrito Nacional
B228: FECHA PREVISTA ADJUDICACIÓN | C228: 2023-05-26 | E228: Municipio | F228: Distrito Nacional
B229: TRIMESTRE | C229: =IF(C228="","",IF(AND(MONTH(C228)>=1,MONTH(C228)<=3),1,IF(AND(MONTH(C228)>=4,MONTH(C228)<=6),2,IF(AND(MONTH(C228)>=7,MONTH(C228)<=9),3,4)))) -> 2 | E229: Distrito Municipal
A231: CÓDIGO CATÁLOGO | B231: ARTÍCULO | C231: UNIDAD DE MEDIDA | D231: CANTIDAD TOTAL ESTIMADA | E231: PRECIO UNITARIO ESTIMADO | F231: MONTO TOTAL ESTIMADO
A232: 78111808 | B232: =IFERROR(INDEX(UNSPSCDes,MATCH(INDIRECT(ADDRESS(ROW(),COLUMN()-1,4)),UNSPSCCode,0)),IF(INDIRECT(ADDRESS(ROW(),COLUMN()-1,4))="78111808","Alquiler de vehículos","")) -> Alquiler de vehículos | C232: =IFERROR(VLOOKUP("UD",'Informacion '!P:Q,2,FALSE),"") -> Unidad | D232: 50 | E232: RD$65,000.00 | F232: =INDIRECT(ADDRESS(ROW(),COLUMN()-2,4))*INDIRECT(ADDRESS(ROW(),COLUMN()-1,4)) -> RD$3,250,000.00
A233: 82121503 | B233: Impresión digital | C233: =IFERROR(VLOOKUP("UD",'Informacion '!P:Q,2,FALSE),"") -> Unidad | D233: 200 | E233: RD$3,500.00 | F233: RD$700,000.00
A234: 90101603 | B234: Servicios de cáterin | C234: =IFERROR(VLOOKUP("UD",'Informacion '!P:Q,2,FALSE),"") -> Unidad | D234: 4000 | E234: RD$1,700.00 | F234: RD$6,800,000.00
A235: 90111503 | B235: Hospedajes de cama y desayuno | C235: =IFERROR(VLOOKUP("UD",'Informacion '!P:Q,2,FALSE),"") -> Unidad | D235: 800 | E235: RD$4,000.00 | F235: RD$3,200,000.00
A236: 53101602 | B236: Camisas para hombre | C236: =IFERROR(VLOOKUP("UD",'Informacion '!P:Q,2,FALSE),"") -> Unidad | D236: 2000 | E236: RD$600.00 | F236: RD$1,200,000.00
A237: 49161507 | B237: Bases de beisbol | C237: =IFERROR(VLOOKUP("UD",'Informacion '!P:Q,2,FALSE),"") -> Unidad | D237: 2100 | E237: RD$2,500.00 | F237: RD$5,250,000.00
E238: TOTAL COMPRA ESTIMADA | F238: =SUM(Table21[MONTO TOTAL ESTIMADO]) -> RD$20,400,000.00 | H238: =C225 -> Servicios | I238: =E225 -> Sí | J238: =D225 -> Licitacion Publica
A240: NOMBRE O REFERENCIA DE CONTRATACIÓN | B240: FINALIDAD DE LA CONTRATACIÓN | C240: OBJETO DE CONTRATACIÓN | D240: PROCEDIMIENTO DE SELECCIÓN | E240: DESTINADO A MIPYMES | F240: CÓDIGO SNIP
A241: Festival Recreativo | B241: Ejecutar lo planificado | C241: Servicios | D241: Licitacion Publica | E241: Sí
... 491 more rows

Sheet Informacion (hidden)
A1: REGIONES | B1: PROVINCIAS | D1: MUNICIPIOS | G1: DISTRITOS MUNICIPALES
A2: REGION | B2: REGION | C2: PROVINCIA | D2: REGION | E2: PROVINCIA | F2: MUNICIPIO | G2: REGION | H2: PROVINCIA | I2: MUNICIPIO | J2: DISTRITO MUNICIPAL | L2: Procedimientos | N2: Destinado a MIPYME? | P2: Un | Q2: Desc. | S2: Objeto de Contratación | U2: Etiquetas necesarias
A3: CIBAO NORTE | B3: CIBAO NORTE | C3: Santiago | D3: CIBAO NORTE | E3: Santiago | F3: Santiago de los Caballeros | G3: CIBAO NORDESTE | H3: Duarte | I3: Arenoso | J3: Arenoso | L3: Comparacion de Precios | N3: Sí | P3: CAJ | Q3: Caja | S3: Bienes | U3: TOTAL COMPRA ESTIMADA
A4: CIBAO SUR | B4: CIBAO NORTE | C4: Puerto Plata | D4: CIBAO NORTE | E4: Santiago | F4: Sabana Iglesia | G4: CIBAO NORDESTE | H4: Duarte | I4: Arenoso | J4: El Aguacate | L4: Compras Menores | N4: MIPYME Mujeres | P4: CM | Q4: Centímetro | S4: Servicios
A5: CIBAO NORDESTE | B5: CIBAO NORTE | C5: Espaillat | D5: CIBAO NORTE | E5: Santiago | F5: Villa Bisonó (Navarrete) | G5: CIBAO NORDESTE | H5: Duarte | I5: Arenoso | J5: Las Coles | L5: Compras por debajo del Umbral | N5: No | P5: CM2 | Q5: Centímetro Cuadrado | S5: Servicios: Consultorías
A6: CIBAO NOROESTE | B6: CIBAO SUR | C6: Concepción de La Vega | D6: CIBAO NORTE | E6: Santiago | F6: Jánico | G6: CIBAO NORDESTE | H6: Duarte | I6: Castillo | J6: Castillo | L6: Excepción - Bienes o servicios con exclusividad | P6: CT | Q6: Ciento | S6: Servicios: Consultoría basada en la calidad de los servicios
A7: VALDESIA | B7: CIBAO SUR | C7: Monseñor Nouel | D7: CIBAO NORTE | E7: Santiago | F7: Licey al Medio | G7: CIBAO NORDESTE | H7: Duarte | I7: Hostos | J7: Hostos | L7: Excepción - Construcción, instalación o adquisición de oficinas para el servicio exterior | P7: DEC | Q7: Decena | S7: Obras
A8: ENRIQUILLO | B8: CIBAO SUR | C8: Sánchez Ramírez | D8: CIBAO NORTE | E8: Santiago | F8: San José de las Matas | G8: CIBAO NORDESTE | H8: Duarte | I8: Hostos | J8: Sabana Grande de Hostos | L8: Excepción - Contratación de publicidad a través de medios de comunicación social | P8: DM | Q8: Decímetro
A9: EL VALLE | B9: CIBAO NORDESTE | C9: Duarte | D9: CIBAO NORTE | E9: Santiago | F9: Tamboril | G9: CIBAO NORDESTE | H9: Duarte | I9: Las Guáranas | J9: Las Guáranas | L9: Excepción - Obras científicas, técnicas, artísticas, o restauración de monumentos históricos | P9: DÍA | Q9: Día
A10: YUMA | B10: CIBAO NORDESTE | C10: Hermanas Mirabal | D10: CIBAO NORTE | E10: Santiago | F10: Villa González | G10: CIBAO NORDESTE | H10: Duarte | I10: Pimentel | J10: Pimentel | L10: Excepción - Proveedor Único | P10: DOC | Q10: Docena
A11: HIGUAMO | B11: CIBAO NORDESTE | C11: María Trinidad Sánchez | D11: CIBAO NORTE | E11: Santiago | F11: Puñal | G11: CIBAO NORDESTE | H11: Duarte | I11: San Fco. de Macorís | J11: Cenoví | L11: Excepción - Rescisión de contratos cuya terminación no exceda el 40% del monto total del proyecto, obra o servicio | P11: GAL | Q11: Galón
A12: OZAMA O METROPOLITANA | B12: CIBAO NORDESTE | C12: Samaná | D12: CIBAO NORTE | E12: Puerto Plata | F12: San Felipe de Puerto Plata | G12: CIBAO NORDESTE | H12: Duarte | I12: San Fco. de Macorís | J12: Don Antonio Guzmán Fernández | L12: Excepción - Resolución 15-08 sobre compra y contratación de pasaje aéreo, combustible y reparación de vehículos de motor | P12: G | Q12: Gramo
B13: CIBAO NOROESTE | C13: Valverde | D13: CIBAO NORTE | E13: Puerto Plata | F13: Altamira | G13: CIBAO NORDESTE | H13: Duarte | I13: San Fco. de Macorís | J13: Jaya | L13: Licitacion Publica | P13: H | Q13: Hora
B14: CIBAO NOROESTE | C14: Santiago Rodriguez | D14: CIBAO NORTE | E14: Puerto Plata | F14: Guananico | G14: CIBAO NORDESTE | H14: Duarte | I14: San Fco. de Macorís | J14: La Peña | L14: Licitacion Publica Internacional | P14: H/H | Q14: Hora Hombre
B15: CIBAO NOROESTE | C15: Montecristi | D15: CIBAO NORTE | E15: Puerto Plata | F15: Imbert | G15: CIBAO NORDESTE | H15: Duarte | I15: San Fco. de Macorís | J15: San Fco. de Macorís | L15: Licitacion Restringida | P15: KG | Q15: Kilogramo
B16: CIBAO NOROESTE | C16: Dajabón | D16: CIBAO NORTE | E16: Puerto Plata | F16: Los Hidalgos | G16: CIBAO NORDESTE | H16: Duarte | I16: Villa Riva | J16: Agua Santa del Yuna | L16: Sorteo de Obras | P16: KM | Q16: Kilómetro
B17: VALDESIA | C17: San Cristóbal | D17: CIBAO NORTE | E17: Puerto Plata | F17: Luperón | G17: CIBAO NORDESTE | H17: Duarte | I17: Villa Riva | J17: Barraquito | L17: Subasta Inversa | P17: KM2 | Q17: Kilómetro cuadrado
B18: VALDESIA | C18: Peravia | D18: CIBAO NORTE | E18: Puerto Plata | F18: Sosúa | G18: CIBAO NORDESTE | H18: Duarte | I18: Villa Riva | J18: Cristo Rey de Guaraguao | P18: LB | Q18: Libra
B19: VALDESIA | C19: San José de Ocoa | D19: CIBAO NORTE | E19: Puerto Plata | F19: Villa Isabela | G19: CIBAO NORDESTE | H19: Duarte | I19: Villa Riva | J19: Las Táranas | P19: L | Q19: Litro
B20: VALDESIA | C20: Azua | D20: CIBAO NORTE | E20: Puerto Plata | F20: Villa Montellano | G20: CIBAO NORDESTE | H20: Duarte | I20: Villa Riva | J20: Villa Riva | P20: MES | Q20: Mes
B21: ENRIQUILLO | C21: Barahona | D21: CIBAO NORTE | E21: Espaillat | F21: Moca | G21: CIBAO NORDESTE | H21: Hermanas Mirabal | I21: Salcedo | J21: Jamao Afuera | P21: M | Q21: Metro
B22: ENRIQUILLO | C22: Bahoruco | D22: CIBAO NORTE | E22: Espaillat | F22: Cayetano Germosén | G22: CIBAO NORDESTE | H22: Hermanas Mirabal | I22: Salcedo | J22: Salcedo | P22: M2 | Q22: Metro cuadrado
B23: ENRIQUILLO | C23: Pedernales | D23: CIBAO NORTE | E23: Espaillat | F23: Gaspar Hernández | G23: CIBAO NORDESTE | H23: Hermanas Mirabal | I23: Tenares | J23: Blanco | P23: M3 | Q23: Metro cúbico
B24: ENRIQUILLO | C24: Independencia | D24: CIBAO NORTE | E24: Espaillat | F24: Jamao al Norte | G24: CIBAO NORDESTE | H24: Hermanas Mirabal | I24: Tenares | J24: Tenares | P24: MG | Q24: Miligramo
B25: EL VALLE | C25: San Juan | D25: CIBAO SUR | E25: Concepción de La Vega | F25: La Vega | G25: CIBAO NORDESTE | H25: Hermanas Mirabal | I25: Villa Tapia | J25: Villa Tapia | P25: MM | Q25: Milímetro
B26: EL VALLE | C26: Elías Piña | D26: CIBAO SUR | E26: Concepción de La Vega | F26: Constanza | G26: CIBAO NORDESTE | H26: María Trinidad Sánchez | I26: Cabrera | J26: Arroyo Salado | P26: MI | Q26: Milla
B27: YUMA | C27: La Romana | D27: CIBAO SUR | E27: Concepción de La Vega | F27: Jarabacoa | G27: CIBAO NORDESTE | H27: María Trinidad Sánchez | I27: Cabrera | J27: Cabrera | P27: MIL | Q27: Millar
B28: YUMA | C28: La Altagracia | D28: CIBAO SUR | E28: Concepción de La Vega | F28: Jima Abajo | G28: CIBAO NORDESTE | H28: María Trinidad Sánchez | I28: Cabrera | J28: La Entrada | P28: OZ | Q28: Onza
B29: YUMA | C29: El Seibo | D29: CIBAO SUR | E29: Monseñor Nouel | F29: Bonao | G29: CIBAO NORDESTE | H29: María Trinidad Sánchez | I29: El Factor | J29: El Factor | P29: PAQ | Q29: Paquete
B30: HIGUAMO | C30: San Pedro de Macorís | D30: CIBAO SUR | E30: Monseñor Nouel | F30: Maimón | G30: CIBAO NORDESTE | H30: María Trinidad Sánchez | I30: El Factor | J30: El Pozo | P30: FT | Q30: Pie
B31: HIGUAMO | C31: Hato Mayor | D31: CIBAO SUR | E31: Monseñor Nouel | F31: Piedra Blanca | G31: CIBAO NORDESTE | H31: María Trinidad Sánchez | I31: Nagua | J31: Arroyo al Medio | P31: FT2 | Q31: Pie cuadrado
B32: HIGUAMO | C32: Monte Plata | D32: CIBAO SUR | E32: Sánchez Ramírez | F32: Cotuí | G32: CIBAO NORDESTE | H32: María Trinidad Sánchez | I32: Nagua | J32: Las Gordas | P32: FT3 | Q32: Pie cúbico
B33: OZAMA O METROPOLITANA | C33: Distrito Nacional | D33: CIBAO SUR | E33: Sánchez Ramírez | F33: Cevicos | G33: CIBAO NORDESTE | H33: María Trinidad Sánchez | I33: Nagua | J33: Nagua | P33: IN | Q33: Pulgada
B34: OZAMA O METROPOLITANA | C34: Santo Domingo | D34: CIBAO SUR | E34: Sánchez Ramírez | F34: Fantino | G34: CIBAO NORDESTE | H34: María Trinidad Sánchez | I34: Nagua | J34: San José de Matanzas | P34: PULG | Q34: Pulgada
D35: CIBAO SUR | E35: Sánchez Ramírez | F35: La Mata | G35: CIBAO NORDESTE | H35: María Trinidad Sánchez | I35: Río San Juan | J35: Río San Juan | P35: IN2 | Q35: Pulgada cuadrada
D36: CIBAO NORDESTE | E36: Duarte | F36: San Fco. de Macorís | G36: CIBAO NORDESTE | H36: Samaná | I36: Las Terrenas | J36: Las Terrenas | P36: 500UD | Q36: Quinientas unidades
D37: CIBAO NORDESTE | E37: Duarte | F37: Arenoso | G37: CIBAO NORDESTE | H37: Samaná | I37: Sánchez | J37: Sánchez | P37: Q | Q37: Quintal
D38: CIBAO NORDESTE | E38: Duarte | F38: Castillo | G38: CIBAO NORDESTE | H38: Samaná | I38: Santa Bárbara de Samaná | J38: Arroyo Barril | P38: RESMA | Q38: Resma
D39: CIBAO NORDESTE | E39: Duarte | F39: Hostos | G39: CIBAO NORDESTE | H39: Samaná | I39: Santa Bárbara de Samaná | J39: El Limón | P39: SEM | Q39: Semana
D40: CIBAO NORDESTE | E40: Duarte | F40: Pimentel | G40: CIBAO NORDESTE | H40: Samaná | I40: Santa Bárbara de Samaná | J40: Las Galeras | P40: TON | Q40: Tonelada
D41: CIBAO NORDESTE | E41: Duarte | F41: Villa Riva | G41: CIBAO NORDESTE | H41: Samaná | I41: Santa Bárbara de Samaná | J41: Santa Bárbara de Samaná | P41: UD | Q41: Unidad
D42: CIBAO NORDESTE | E42: Duarte | F42: Las Guáranas | G42: CIBAO NOROESTE | H42: Dajabón | I42: Dajabón | J42: Cañongo | P42: YD | Q42: Yarda
D43: CIBAO NORDESTE | E43: Hermanas Mirabal | F43: Salcedo | G43: CIBAO NOROESTE | H43: Dajabón | I43: Dajabón | J43: Dajabón | P43: YD2 | Q43: Yarda cuadrada
D44: CIBAO NORDESTE | E44: Hermanas Mirabal | F44: Tenares | G44: CIBAO NOROESTE | H44: Dajabón | I44: El Pino | J44: El Pino
D45: CIBAO NORDESTE | E45: Hermanas Mirabal | F45: Villa Tapia | G45: CIBAO NOROESTE | H45: Dajabón | I45: El Pino | J45: Manuel Bueno
D46: CIBAO NORDESTE | E46: María Trinidad Sánchez | F46: Nagua | G46: CIBAO NOROESTE | H46: Dajabón | I46: Loma de Cabrera | J46: Capotillo
D47: CIBAO NORDESTE | E47: María Trinidad Sánchez | F47: Cabrera | G47: CIBAO NOROESTE | H47: Dajabón | I47: Loma de Cabrera | J47: Loma de Cabrera
D48: CIBAO NORDESTE | E48: María Trinidad Sánchez | F48: El Factor | G48: CIBAO NOROESTE | H48: Dajabón | I48: Loma de Cabrera | J48: Santiago de la Cruz
D49: CIBAO NORDESTE | E49: María Trinidad Sánchez | F49: Río San Juan | G49: CIBAO NOROESTE | H49: Dajabón | I49: Partido | J49: Partido
D50: CIBAO NORDESTE | E50: Samaná | F50: Santa Bárbara de Samaná | G50: CIBAO NOROESTE | H50: Dajabón | I50: Restauración | J50: Restauración
D51: CIBAO NORDESTE | E51: Samaná | F51: Sánchez | G51: CIBAO NOROESTE | H51: Montecristi | I51: Castañuelas | J51: Castañuelas
D52: CIBAO NORDESTE | E52: Samaná | F52: Las Terrenas | G52: CIBAO NOROESTE | H52: Montecristi | I52: Castañuelas | J52: Palo Verde
D53: CIBAO NOROESTE | E53: Valverde | F53: Santa Cruz de Mao | G53: CIBAO NOROESTE | H53: Montecristi | I53: Guayubín | J53: Cana Chapetón
D54: CIBAO NOROESTE | E54: Valverde | F54: Esperanza | G54: CIBAO NOROESTE | H54: Montecristi | I54: Guayubín | J54: Guayubín
D55: CIBAO NOROESTE | E55: Valverde | F55: Laguna Salada | G55: CIBAO NOROESTE | H55: Montecristi | I55: Guayubín | J55: Hatillo Palma
D56: CIBAO NOROESTE | E56: Santiago Rodriguez | F56: San Ignacio de Sabaneta | G56: CIBAO NOROESTE | H56: Montecristi | I56: Guayubín | J56: Villa Elisa
D57: CIBAO NOROESTE | E57: Santiago Rodriguez | F57: Villa los Almácigos | G57: CIBAO NOROESTE | H57: Montecristi | I57: Las Matas de Santa Cruz | J57: Las Matas de Santa Cruz
D58: CIBAO NOROESTE | E58: Santiago Rodriguez | F58: Monción | G58: CIBAO NOROESTE | H58: Montecristi | I58: Pepillo Salcedo | J58: Pepillo Salcedo
D59: CIBAO NOROESTE | E59: Montecristi | F59: San Fernando de Montecristi | G59: CIBAO NOROESTE | H59: Montecristi | I59: San Fernando de Montecristi | J59: San Fernando de Montecristi
D60: CIBAO NOROESTE | E60: Montecristi | F60: Castañuelas | G60: CIBAO NOROESTE | H60: Montecristi | I60: Villa Vásquez | J60: Villa Vásquez
D61: CIBAO NOROESTE | E61: Montecristi | F61: Guayubín | G61: CIBAO NOROESTE | H61: Santiago Rodriguez | I61: Monción | J61: Monción
D62: CIBAO NOROESTE | E62: Montecristi | F62: Las Matas de Santa Cruz | G62: CIBAO NOROESTE | H62: Santiago Rodriguez | I62: San Ignacio de Sabaneta | J62: San Ignacio de Sabaneta
D63: CIBAO NOROESTE | E63: Montecristi | F63: Pepillo Salcedo | G63: CIBAO NOROESTE | H63: Santiago Rodriguez | I63: Villa los Almácigos | J63: Villa los Almácigos
D64: CIBAO NOROESTE | E64: Montecristi | F64: Villa Vásquez | G64: CIBAO NOROESTE | H64: Valverde | I64: Esperanza | J64: Boca de Mao
D65: CIBAO NOROESTE | E65: Dajabón | F65: Dajabón | G65: CIBAO NOROESTE | H65: Valverde | I65: Esperanza | J65: Esperanza
D66: CIBAO NOROESTE | E66: Dajabón | F66: Loma de Cabrera | G66: CIBAO NOROESTE | H66: Valverde | I66: Esperanza | J66: Jicomé
D67: CIBAO NOROESTE | E67: Dajabón | F67: Restauración | G67: CIBAO NOROESTE | H67: Valverde | I67: Esperanza | J67: Maizal
D68: CIBAO NOROESTE | E68: Dajabón | F68: Partido | G68: CIBAO NOROESTE | H68: Valverde | I68: Esperanza | J68: Paradero
D69: CIBAO NOROESTE | E69: Dajabón | F69: El Pino | G69: CIBAO NOROESTE | H69: Valverde | I69: Laguna Salada | J69: Cruce de Guayacanes
D70: VALDESIA | E70: San Cristóbal | F70: San Cristóbal | G70: CIBAO NOROESTE | H70: Valverde | I70: Laguna Salada | J70: Jaibón (Laguna Salada)
D71: VALDESIA | E71: San Cristóbal | F71: Bajos de Haina | G71: CIBAO NOROESTE | H71: Valverde | I71: Laguna Salada | J71: La Caya
D72: VALDESIA | E72: San Cristóbal | F72: Los Cacaos | G72: CIBAO NOROESTE | H72: Valverde | I72: Laguna Salada | J72: Laguna Salada
D73: VALDESIA | E73: San Cristóbal | F73: Cambita Garabitos | G73: CIBAO NOROESTE | H73: Valverde | I73: Santa Cruz de Mao | J73: Ámina
D74: VALDESIA | E74: San Cristóbal | F74: San Gregorio de Nigua | G74: CIBAO NOROESTE | H74: Valverde | I74: Santa Cruz de Mao | J74: Guatapanal
D75: VALDESIA | E75: San Cristóbal | F75: Sabana Grande de Palenque | G75: CIBAO NOROESTE | H75: Valverde | I75: Santa Cruz de Mao | J75: Jaibón (Pueblo Nuevo)
D76: VALDESIA | E76: San Cristóbal | F76: Yaguate | G76: CIBAO NOROESTE | H76: Valverde | I76: Santa Cruz de Mao | J76: Santa Cruz de Mao
D77: VALDESIA | E77: San Cristóbal | F77: Villa Altagracia | G77: CIBAO NORTE | H77: Espaillat | I77: Cayetano Germosén | J77: Cayetano Germosén
D78: VALDESIA | E78: Peravia | F78: Baní | G78: CIBAO NORTE | H78: Espaillat | I78: Gaspar Hernández | J78: Gaspar Hernández
D79: VALDESIA | E79: Peravia | F79: Nizao | G79: CIBAO NORTE | H79: Espaillat | I79: Gaspar Hernández | J79: Joba Arriba
D80: VALDESIA | E80: San José de Ocoa | F80: San José de Ocoa | G80: CIBAO NORTE | H80: Espaillat | I80: Gaspar Hernández | J80: Veragua
D81: VALDESIA | E81: San José de Ocoa | F81: Sabana Larga | G81: CIBAO NORTE | H81: Espaillat | I81: Gaspar Hernández | J81: Villa Magante
D82: VALDESIA | E82: San José de Ocoa | F82: Rancho Arriba | G82: CIBAO NORTE | H82: Espaillat | I82: Jamao al Norte | J82: Jamao al Norte
D83: VALDESIA | E83: Azua | F83: Azua de Compostela | G83: CIBAO NORTE | H83: Espaillat | I83: Moca | J83: Canca la Reina
D84: VALDESIA | E84: Azua | F84: Guayabal | G84: CIBAO NORTE | H84: Espaillat | I84: Moca | J84: El Higuerito
D85: VALDESIA | E85: Azua | F85: Las Charcas | G85: CIBAO NORTE | H85: Espaillat | I85: Moca | J85: José Contreras
D86: VALDESIA | E86: Azua | F86: Las Yayas de Viajama | G86: CIBAO NORTE | H86: Espaillat | I86: Moca | J86: Juan López
D87: VALDESIA | E87: Azua | F87: Padre Las Casas | G87: CIBAO NORTE | H87: Espaillat | I87: Moca | J87: La Ortega
D88: VALDESIA | E88: Azua | F88: Peralta | G88: CIBAO NORTE | H88: Espaillat | I88: Moca | J88: Las Lagunas Abajo
D89: VALDESIA | E89: Azua | F89: Sabana Yegua | G89: CIBAO NORTE | H89: Espaillat | I89: Moca | J89: Moca
D90: VALDESIA | E90: Azua | F90: Tábara Arriba | G90: CIBAO NORTE | H90: Espaillat | I90: Moca | J90: Monte de la Jagua
D91: VALDESIA | E91: Azua | F91: Estebanía | G91: CIBAO NORTE | H91: Espaillat | I91: Moca | J91: San Víctor
D92: VALDESIA | E92: Azua | F92: Pueblo Viejo | G92: CIBAO NORTE | H92: Puerto Plata | I92: Altamira | J92: Altamira
D93: ENRIQUILLO | E93: Barahona | F93: Santa Cruz de Barahona | G93: CIBAO NORTE | H93: Puerto Plata | I93: Altamira | J93: Río Grande
D94: ENRIQUILLO | E94: Barahona | F94: Cabral | G94: CIBAO NORTE | H94: Puerto Plata | I94: Guananico | J94: Guananico
D95: ENRIQUILLO | E95: Barahona | F95: Enriquillo | G95: CIBAO NORTE | H95: Puerto Plata | I95: Imbert | J95: Imbert
D96: ENRIQUILLO | E96: Barahona | F96: Las Salinas | G96: CIBAO NORTE | H96: Puerto Plata | I96: Los Hidalgos | J96: Los Hidalgos
D97: ENRIQUILLO | E97: Barahona | F97: Paraíso | G97: CIBAO NORTE | H97: Puerto Plata | I97: Los Hidalgos | J97: Navas
D98: ENRIQUILLO | E98: Barahona | F98: Polo | G98: CIBAO NORTE | H98: Puerto Plata | I98: Luperón | J98: Belloso
D99: ENRIQUILLO | E99: Barahona | F99: Vicente Noble | G99: CIBAO NORTE | H99: Puerto Plata | I99: Luperón | J99: El Estrecho de Luperón Omar Bross
D100: ENRIQUILLO | E100: Barahona | F100: El Peñón | G100: CIBAO NORTE | H100: Puerto Plata | I100: Luperón | J100: La Isabela
D101: ENRIQUILLO | E101: Barahona | F101: Fundación | G101: CIBAO NORTE | H101: Puerto Plata | I101: Luperón | J101: Luperón
D102: ENRIQUILLO | E102: Barahona | F102: La Ciénaga | G102: CIBAO NORTE | H102: Puerto Plata | I102: San Felipe de Puerto Plata | J102: Maimón
D103: ENRIQUILLO | E103: Barahona | F103: Jaquimeyes | G103: CIBAO NORTE | H103: Puerto Plata | I103: San Felipe de Puerto Plata | J103: San Felipe de Puerto Plata
D104: ENRIQUILLO | E104: Bahoruco | F104: Neyba | G104: CIBAO NORTE | H104: Puerto Plata | I104: San Felipe de Puerto Plata | J104: Yásica Arriba
D105: ENRIQUILLO | E105: Bahoruco | F105: Galván | G105: CIBAO NORTE | H105: Puerto Plata | I105: Sosúa | J105: Cabarete
D106: ENRIQUILLO | E106: Bahoruco | F106: Los Ríos | G106: CIBAO NORTE | H106: Puerto Plata | I106: Sosúa | J106: Sabaneta de Yásica
D107: ENRIQUILLO | E107: Bahoruco | F107: Tamayo | G107: CIBAO NORTE | H107: Puerto Plata | I107: Sosúa | J107: Sosúa
D108: ENRIQUILLO | E108: Bahoruco | F108: Villa Jaragua | G108: CIBAO NORTE | H108: Puerto Plata | I108: Villa Isabela | J108: Estero Hondo
D109: ENRIQUILLO | E109: Pedernales | F109: Pedernales | G109: CIBAO NORTE | H109: Puerto Plata | I109: Villa Isabela | J109: Gualete
D110: ENRIQUILLO | E110: Pedernales | F110: Oviedo | G110: CIBAO NORTE | H110: Puerto Plata | I110: Villa Isabela | J110: La Jaiba
D111: ENRIQUILLO | E111: Independencia | F111: Jimaní | G111: CIBAO NORTE | H111: Puerto Plata | I111: Villa Isabela | J111: Villa Isabela
D112: ENRIQUILLO | E112: Independencia | F112: Duvergé | G112: CIBAO NORTE | H112: Puerto Plata | I112: Villa Montellano | J112: Villa Montellano
D113: ENRIQUILLO | E113: Independencia | F113: La Descubierta | G113: CIBAO NORTE | H113: Santiago | I113: Jánico | J113: El Caimito
D114: ENRIQUILLO | E114: Independencia | F114: Mella | G114: CIBAO NORTE | H114: Santiago | I114: Jánico | J114: Jánico
D115: ENRIQUILLO | E115: Independencia | F115: Postrer Río | G115: CIBAO NORTE | H115: Santiago | I115: Jánico | J115: Juncalito
D116: ENRIQUILLO | E116: Independencia | F116: Cristóbal | G116: CIBAO NORTE | H116: Santiago | I116: Licey al Medio | J116: Las Palomas
D117: EL VALLE | E117: San Juan | F117: San Juan de la Maguana | G117: CIBAO NORTE | H117: Santiago | I117: Licey al Medio | J117: Licey al Medio
D118: EL VALLE | E118: San Juan | F118: Bohechio | G118: CIBAO NORTE | H118: Santiago | I118: Puñal | J118: Canabacoa
D119: EL VALLE | E119: San Juan | F119: El Cercado | G119: CIBAO NORTE | H119: Santiago | I119: Puñal | J119: Guayabal
D120: EL VALLE | E120: San Juan | F120: Juan de Herrera | G120: CIBAO NORTE | H120: Santiago | I120: Puñal | J120: Puñal
D121: EL VALLE | E121: San Juan | F121: Las Matas de Farfán | G121: CIBAO NORTE | H121: Santiago | I121: Sabana Iglesia | J121: Sabana Iglesia
D122: EL VALLE | E122: San Juan | F122: Vallejuelo | G122: CIBAO NORTE | H122: Santiago | I122: San José de las Matas | J122: El Rubio
D123: EL VALLE | E123: Elías Piña | F123: Comendador | G123: CIBAO NORTE | H123: Santiago | I123: San José de las Matas | J123: La Cuesta
D124: EL VALLE | E124: Elías Piña | F124: Bánica | G124: CIBAO NORTE | H124: Santiago | I124: San José de las Matas | J124: Las Placetas
D125: EL VALLE | E125: Elías Piña | F125: El Llano | G125: CIBAO NORTE | H125: Santiago | I125: San José de las Matas | J125: San José de las Matas
D126: EL VALLE | E126: Elías Piña | F126: Hondo Valle | G126: CIBAO NORTE | H126: Santiago | I126: Santiago de los Caballeros | J126: Baitoa
D127: EL VALLE | E127: Elías Piña | F127: Pedro Santana | G127: CIBAO NORTE | H127: Santiago | I127: Santiago de los Caballeros | J127: Hato del Yaque
D128: EL VALLE | E128: Elías Piña | F128: Juan Santiago | G128: CIBAO NORTE | H128: Santiago | I128: Santiago de los Caballeros | J128: La Canela
D129: YUMA | E129: La Romana | F129: La Romana | G129: CIBAO NORTE | H129: Santiago | I129: Santiago de los Caballeros | J129: Pedro García
D130: YUMA | E130: La Romana | F130: Guaymate | G130: CIBAO NORTE | H130: Santiago | I130: Santiago de los Caballeros | J130: San Francisco de Jacagua
D131: YUMA | E131: La Romana | F131: Villa Hermosa | G131: CIBAO NORTE | H131: Santiago | I131: Santiago de los Caballeros | J131: Santiago de los Caballeros
D132: YUMA | E132: La Altagracia | F132: Salvaléon de Higüey | G132: CIBAO NORTE | H132: Santiago | I132: Tamboril | J132: Canca la Piedra
D133: YUMA | E133: La Altagracia | F133: San Rafael del Yuma | G133: CIBAO NORTE | H133: Santiago | I133: Tamboril | J133: Tamboril
D134: YUMA | E134: El Seibo | F134: Santa Cruz del Seibo | G134: CIBAO NORTE | H134: Santiago | I134: Villa Bisonó (Navarrete) | J134: Villa Bisonó (Navarrete)
D135: YUMA | E135: El Seibo | F135: Miches | G135: CIBAO NORTE | H135: Santiago | I135: Villa González | J135: El Limón
D136: HIGUAMO | E136: San Pedro de Macorís | F136: San Pedro de Macorís | G136: CIBAO NORTE | H136: Santiago | I136: Villa González | J136: Palmar Arriba
D137: HIGUAMO | E137: San Pedro de Macorís | F137: San José de los Llanos | G137: CIBAO NORTE | H137: Santiago | I137: Villa González | J137: Villa González
D138: HIGUAMO | E138: San Pedro de Macorís | F138: Ramón Santana | G138: CIBAO SUR | H138: Concepción de La Vega | I138: Constanza | J138: Constanza
D139: HIGUAMO | E139: San Pedro de Macorís | F139: Consuelo | G139: CIBAO SUR | H139: Concepción de La Vega | I139: Constanza | J139: La Sabina
D140: HIGUAMO | E140: San Pedro de Macorís | F140: Quisqueya | G140: CIBAO SUR | H140: Concepción de La Vega | I140: Constanza | J140: Tireo Arriba
D141: HIGUAMO | E141: San Pedro de Macorís | F141: Guayacanes | G141: CIBAO SUR | H141: Concepción de La Vega | I141: Jarabacoa | J141: Buena Vista
D142: HIGUAMO | E142: Hato Mayor | F142: Hato Mayor del Rey | G142: CIBAO SUR | H142: Concepción de La Vega | I142: Jarabacoa | J142: Jarabacoa
D143: HIGUAMO | E143: Hato Mayor | F143: Sabana de la Mar | G143: CIBAO SUR | H143: Concepción de La Vega | I143: Jarabacoa | J143: Manabao
D144: HIGUAMO | E144: Hato Mayor | F144: El Valle | G144: CIBAO SUR | H144: Concepción de La Vega | I144: Jima Abajo | J144: Jima Abajo
D145: HIGUAMO | E145: Monte Plata | F145: Monte Plata | G145: CIBAO SUR | H145: Concepción de La Vega | I145: Jima Abajo | J145: Rincón
D146: HIGUAMO | E146: Monte Plata | F146: Bayaguana | G146: CIBAO SUR | H146: Concepción de La Vega | I146: La Vega | J146: El Ranchito
D147: HIGUAMO | E147: Monte Plata | F147: Sabana Grande de Boyá | G147: CIBAO SUR | H147: Concepción de La Vega | I147: La Vega | J147: La Vega
D148: HIGUAMO | E148: Monte Plata | F148: Yamasá | G148: CIBAO SUR | H148: Concepción de La Vega | I148: La Vega | J148: Río Verde Arriba
D149: HIGUAMO | E149: Monte Plata | F149: Peralvillo | G149: CIBAO SUR | H149: Monseñor Nouel | I149: Bonao | J149: Arroyo Toro Masipedro
D150: OZAMA O METROPOLITANA | E150: Distrito Nacional | F150: Distrito Nacional | G150: CIBAO SUR | H150: Monseñor Nouel | I150: Bonao | J150: Bonao
D151: OZAMA O METROPOLITANA | E151: Santo Domingo | F151: Santo Domingo Este | G151: CIBAO SUR | H151: Monseñor Nouel | I151: Bonao | J151: Jayaco
D152: OZAMA O METROPOLITANA | E152: Santo Domingo | F152: Santo Domingo Oeste | G152: CIBAO SUR | H152: Monseñor Nouel | I152: Bonao | J152: Juma Bejucal
D153: OZAMA O METROPOLITANA | E153: Santo Domingo | F153: Santo Domingo Norte | G153: CIBAO SUR | H153: Monseñor Nouel | I153: Bonao | J153: La Salvia- Los Quemados
D154: OZAMA O METROPOLITANA | E154: Santo Domingo | F154: Boca Chica | G154: CIBAO SUR | H154: Monseñor Nouel | I154: Bonao | J154: Sabana del Puerto
D155: OZAMA O METROPOLITANA | E155: Santo Domingo | F155: Guerra | G155: CIBAO SUR | H155: Monseñor Nouel | I155: Maimón | J155: Maimón
D156: OZAMA O METROPOLITANA | E156: Santo Domingo | F156: Los Alcarrizos | G156: CIBAO SUR | H156: Monseñor Nouel | I156: Piedra Blanca | J156: Juan Adrián
D157: OZAMA O METROPOLITANA | E157: Santo Domingo | F157: Pedro Brand | G157: CIBAO SUR | H157: Monseñor Nouel | I157: Piedra Blanca | J157: Piedra Blanca
G158: CIBAO SUR | H158: Monseñor Nouel | I158: Piedra Blanca | J158: Villa de Sonador
G159: CIBAO SUR | H159: Sánchez Ramírez | I159: Cevicos | J159: Cevicos
G160: CIBAO SUR | H160: Sánchez Ramírez | I160: Cevicos | J160: La Cueva
G161: CIBAO SUR | H161: Sánchez Ramírez | I161: Cotuí | J161: Caballero
G162: CIBAO SUR | H162: Sánchez Ramírez | I162: Cotuí | J162: Comedero Arriba
G163: CIBAO SUR | H163: Sánchez Ramírez | I163: Cotuí | J163: Cotuí
G164: CIBAO SUR | H164: Sánchez Ramírez | I164: Cotuí | J164: Platanal
G165: CIBAO SUR | H165: Sánchez Ramírez | I165: Cotuí | J165: Quita Sueño
G166: CIBAO SUR | H166: Sánchez Ramírez | I166: Fantino | J166: Fantino
G167: CIBAO SUR | H167: Sánchez Ramírez | I167: La Mata | J167: Angelina
G168: CIBAO SUR | H168: Sánchez Ramírez | I168: La Mata | J168: Hernando Alonso
G169: CIBAO SUR | H169: Sánchez Ramírez | I169: La Mata | J169: La Bija
G170: CIBAO SUR | H170: Sánchez Ramírez | I170: La Mata | J170: La Mata
G171: EL VALLE | H171: Elías Piña | I171: Bánica | J171: Bánica
G172: EL VALLE | H172: Elías Piña | I172: Bánica | J172: Sabana Cruz
G173: EL VALLE | H173: Elías Piña | I173: Bánica | J173: Sabana Higüero
G174: EL VALLE | H174: Elías Piña | I174: Comendador | J174: Comendador
G175: EL VALLE | H175: Elías Piña | I175: Comendador | J175: Guayabo
G176: EL VALLE | H176: Elías Piña | I176: Comendador | J176: Sabana Larga
G177: EL VALLE | H177: Elías Piña | I177: El Llano | J177: El Llano
G178: EL VALLE | H178: Elías Piña | I178: El Llano | J178: Guanito
G179: EL VALLE | H179: Elías Piña | I179: Hondo Valle | J179: Hondo Valle
G180: EL VALLE | H180: Elías Piña | I180: Hondo Valle | J180: Rancho de la Guardia
G181: EL VALLE | H181: Elías Piña | I181: Juan Santiago | J181: Juan Santiago
G182: EL VALLE | H182: Elías Piña | I182: Pedro Santana | J182: Pedro Santana
G183: EL VALLE | H183: Elías Piña | I183: Pedro Santana | J183: Río Limpio
G184: EL VALLE | H184: San Juan | I184: Bohechio | J184: Arroyo Cano
G185: EL VALLE | H185: San Juan | I185: Bohechio | J185: Bohechio
G186: EL VALLE | H186: San Juan | I186: Bohechio | J186: El Yaque
G187: EL VALLE | H187: San Juan | I187: El Cercado | J187: Batista
G188: EL VALLE | H188: San Juan | I188: El Cercado | J188: El Cercado
G189: EL VALLE | H189: San Juan | I189: El Cercado | J189: Nuevo Brasil
G190: EL VALLE | H190: San Juan | I190: Juan de Herrera | J190: Jínova
G191: EL VALLE | H191: San Juan | I191: Juan de Herrera | J191: Juan de Herrera
G192: EL VALLE | H192: San Juan | I192: Las Matas de Farfán | J192: Carrera de Yeguas
G193: EL VALLE | H193: San Juan | I193: Las Matas de Farfán | J193: Las Matas de Farfán
G194: EL VALLE | H194: San Juan | I194: Las Matas de Farfán | J194: Matayaya
G195: EL VALLE | H195: San Juan | I195: San Juan de la Maguana | J195: El Rosario
G196: EL VALLE | H196: San Juan | I196: San Juan de la Maguana | J196: Guanito
G197: EL VALLE | H197: San Juan | I197: San Juan de la Maguana | J197: Hato del Padre
G198: EL VALLE | H198: San Juan | I198: San Juan de la Maguana | J198: La Jagua
G199: EL VALLE | H199: San Juan | I199: San Juan de la Maguana | J199: Las Charcas de María Nova
G200: EL VALLE | H200: San Juan | I200: San Juan de la Maguana | J200: Las Maguanas, Hato Nuevo
... 187 more rows

Sheet UNSPSC
A1: 10101501 | B1: Gatos
A2: 10101502 | B2: Perros
A3: 10101504 | B3: Visón
A4: 10101505 | B4: Ratas
A5: 10101506 | B5: Caballos
A6: 10101507 | B6: Ovejas
A7: 10101508 | B7: Cabras
A8: 10101509 | B8: Asnos
A9: 10101510 | B9: Ratones
A10: 10101511 | B10: Cerdos
A11: 10101512 | B11: Conejos
A12: 10101513 | B12: Cobayas o conejillos de indias
A13: 10101514 | B13: Primates
A14: 10101515 | B14: Armadillos
A15: 10101516 | B15: Ganado vacuno
A16: 10101517 | B16: Camellos
A17: 10101601 | B17: Pollos vivos
A18: 10101602 | B18: Patos vivos
A19: 10101603 | B19: Pavos vivos
A20: 10101604 | B20: Gansos vivos
A21: 10101605 | B21: Faisanes vivos
A22: 10101701 | B22: Salmón vivos
A23: 10101702 | B23: Trucha viva
A24: 10101703 | B24: Tilapia viva
A25: 10101704 | B25: Carpa viva
A26: 10101705 | B26: Anguilas vivas
A27: 10101801 | B27: Camarón vivo
A28: 10101802 | B28: Almejas vivas
A29: 10101803 | B29: Mejillones vivos
A30: 10101804 | B30: Ostras vivas
A31: 10101805 | B31: Cangrejos vivos
A32: 10101806 | B32: Abulones vivos
A33: 10101807 | B33: Pulpo vivo
A34: 10101808 | B34: Calamar vivo
A35: 10101901 | B35: Mariposas
A36: 10101902 | B36: Escarabajos
A37: 10101903 | B37: Abejas
A38: 10101904 | B38: Gusanos de seda
A39: 10102001 | B39: Elefantes
A40: 10102002 | B40: Zorros vivos
A41: 10111301 | B41: Juguetes para mascotas
A42: 10111302 | B42: Productos para el aseo y cuidado de mascotas
A43: 10111303 | B43: Equipo para el manejo de desperdicios de las mascotas
A44: 10111304 | B44: Tazones o equipo para alimentación de mascotas
A45: 10111305 | B45: Tratamientos medicados para mascotas
A46: 10111306 | B46: Kits para el entrenamiento de mascotas domésticas
A47: 10111307 | B47: Cobijas para mascotas
A48: 10121501 | B48: Salvado de trigo puro
A49: 10121502 | B49: Avena para forraje
A50: 10121503 | B50: Maíz para forraje
A51: 10121504 | B51: Sorgo para forraje
A52: 10121505 | B52: Heno
A53: 10121506 | B53: Tortas oleaginosas
A54: 10121601 | B54: Alimento vivo para aves
A55: 10121602 | B55: Alpiste
A56: 10121603 | B56: Pasa bocas o comida recreacional para aves
A57: 10121604 | B57: Alimento avícola
A58: 10121701 | B58: Salmuera fresca o congelada
A59: 10121702 | B59: Alimento granulado para peces
A60: 10121703 | B60: Alimento en hojuelas para peces
A61: 10121801 | B61: Comida seca para perros
A62: 10121802 | B62: Comida húmeda para perros
A63: 10121803 | B63: Leche para perros o gatos
A64: 10121804 | B64: Comida seca para gatos
A65: 10121805 | B65: Comida húmeda para gatos
A66: 10121806 | B66: Pasa bocas o comida recreacional para gatos o perros
A67: 10121901 | B67: Comida granulada para roedores
A68: 10122001 | B68: Comida granulada para reptiles
A69: 10122002 | B69: Comida húmeda para reptiles
A70: 10122003 | B70: Comida viva para reptiles
A71: 10122101 | B71: Comida para cerdos
A72: 10122102 | B72: Comida para visones
A73: 10122103 | B73: Comida para monos
A74: 10131506 | B74: Establos para ganado
A75: 10131507 | B75: Casas para mascotas domesticadas
A76: 10131508 | B76: Camas para mascotas
A77: 10131601 | B77: Jaulas o sus accesorios
A78: 10131602 | B78: Perreras
A79: 10131603 | B79: Equipaje para el transporte de animales
A80: 10131604 | B80: Correas para perros
A81: 10131701 | B81: Terrarios
A82: 10131702 | B82: Acuarios
A83: 10141501 | B83: Sillas de montar
A84: 10141502 | B84: Fustas y látigos
A85: 10141503 | B85: Herraduras para caballo
A86: 10141504 | B86: Herraduras para mula
A87: 10141601 | B87: Bridas
A88: 10141602 | B88: Yugos
A89: 10141603 | B89: Bocados para caballos
A90: 10141604 | B90: Riendas
A91: 10141605 | B91: Estribos
A92: 10141606 | B92: Correas o traíllas
A93: 10141607 | B93: Arneses de cuello para animales
A94: 10141608 | B94: Arneses o sus accesorios
A95: 10141609 | B95: Sujetadores
A96: 10141610 | B96: Bozales
A97: 10141611 | B97: Soportes para correas
A98: 10151501 | B98: Semillas o plántulas de fríjol
A99: 10151502 | B99: Semillas o plántulas de zanahoria
A100: 10151503 | B100: Semillas o plántulas de apio
A101: 10151504 | B101: Semillas o plántulas de chiles
A102: 10151505 | B102: Semillas o plántulas de calabacín
A103: 10151506 | B103: Semillas o plántulas de alverja
A104: 10151507 | B104: Semillas o plántulas de pepino cohombro
A105: 10151508 | B105: Semillas o plántulas de berenjena
A106: 10151509 | B106: Semillas o plántulas de endivias
A107: 10151510 | B107: Semillas o plántulas de ajo
A108: 10151511 | B108: Semillas o plántulas de puerro
A109: 10151512 | B109: Semillas o plántulas de lechuga
A110: 10151513 | B110: Semillas o plántulas de maíz
A111: 10151514 | B111: Semillas o plántulas de melón
A112: 10151515 | B112: Semillas o plántulas cebolla
A113: 10151516 | B113: Semillas o plántulas de soya
A114: 10151517 | B114: Semillas o plántulas de espinaca
A115: 10151518 | B115: Semillas o plántulas de tomate
A116: 10151519 | B116: Semillas o plántulas de nabo
A117: 10151520 | B117: Semillas o plántulas de acelga
A118: 10151521 | B118: Semillas o plántulas de pimiento morrón
A119: 10151522 | B119: Semillas o plántulas de remolacha
A120: 10151523 | B120: Semillas o plántulas de coliflor
A121: 10151524 | B121: Semillas o plántulas de perejil
A122: 10151525 | B122: Semillas o plántulas de brócoli
A123: 10151526 | B123: Semillas o plántulas de repollo
A124: 10151527 | B124: Semillas o plántulas de papa
A125: 10151528 | B125: Semillas o plántulas de batata
A126: 10151529 | B126: Semillas o plántulas de calabaza
A127: 10151530 | B127: Semillas o plántulas de rábano
A128: 10151531 | B128: Semillas o plántulas de repollitos de bruselas
A129: 10151532 | B129: Semillas o plántulas de ahuyama
A130: 10151533 | B130: Semillas o plántulas de okra
A131: 10151534 | B131: Semillas o plántulas de melón cantalupo
A132: 10151535 | B132: Semillas o plántulas de maní
A133: 10151601 | B133: Semillas de trigo
A134: 10151602 | B134: Semillas de canola
A135: 10151603 | B135: Semillas de cebada
A136: 10151604 | B136: Semillas de mijo
A137: 10151605 | B137: Semillas de avena
A138: 10151606 | B138: Semillas de ajonjolí
A139: 10151607 | B139: Semillas de linaza
A140: 10151608 | B140: Semillas de aceite de ricino
A141: 10151609 | B141: Semillas de maíz
A142: 10151610 | B142: Semillas de centeno
A143: 10151611 | B143: Semillas de sorgo
A144: 10151701 | B144: Semillas o plántulas de arroz
A145: 10151702 | B145: Semillas o plántulas de trébol
A146: 10151703 | B146: Semillas o plántulas de alfalfa
A147: 10151704 | B147: Semillas o plántulas de pasto
A148: 10151705 | B148: Semillas o plántulas de veza (gachas / guija)
A149: 10151706 | B149: Semillas o plántulas de guar
A150: 10151801 | B150: Semillas o plántulas de pimienta
A151: 10151802 | B151: Semillas o plántulas de vainilla
A152: 10151803 | B152: Semillas o plántulas de canela
A153: 10151804 | B153: Semillas o plántulas de clavo de olor
A154: 10151805 | B154: Semillas o plántulas de cilantro
A155: 10151806 | B155: Semillas o plántulas de jengibre
A156: 10151807 | B156: Semillas o plántulas de azafrán
A157: 10151808 | B157: Semillas o plántulas de tomillo
A158: 10151809 | B158: Semillas o plántulas de curry
A159: 10151810 | B159: Semillas o plántulas de mostaza
A160: 10151811 | B160: Semillas o plántulas de ginseng
A161: 10151901 | B161: Semillas, bulbos, plántulas o esquejes de tulipán
A162: 10151902 | B162: Semillas, plántulas o esquejes de rosa
A163: 10151903 | B163: Semillas, bulbos, plántulas o esquejes de narciso
A164: 10151904 | B164: Semillas de girasol
A165: 10151905 | B165: Bulbos o tallos de jacinto
A166: 10151906 | B166: Bulbos de lirio
A167: 10151907 | B167: Semillas o plántulas de veza
A168: 10152001 | B168: Semillas o esquejes de árboles frutales
A169: 10152002 | B169: Semillas o esquejes de coníferas
A170: 10152003 | B170: Semillas o esquejes de árboles de frutos secos
A171: 10152101 | B171: Extracción de los residuos de semilla de babool
A172: 10152102 | B172: Residuos de semilla de colza
A173: 10152103 | B173: Residuo de semillas de linaza
A174: 10152104 | B174: Torta de neem
A175: 10152201 | B175: Semillas o plántulas de algodón
A176: 10152202 | B176: Semillas o plántulas de lino
A177: 10161501 | B177: Aceitunos
A178: 10161502 | B178: Cafetos
A179: 10161503 | B179: Cacaoteros
A180: 10161504 | B180: Manzanos
A181: 10161505 | B181: Peros
A182: 10161506 | B182: Naranjos
A183: 10161507 | B183: Rododendros
A184: 10161508 | B184: Plantas de te
A185: 10161509 | B185: Coníferas
A186: 10161510 | B186: Abetos rojos (píceas)
A187: 10161511 | B187: Pinos
A188: 10161512 | B188: Abetos
A189: 10161513 | B189: Palmeras
A190: 10161601 | B190: Rosales
A191: 10161602 | B191: Poinsettias
A192: 10161603 | B192: Orquídeas
A193: 10161604 | B193: Azaleas
A194: 10161605 | B194: Cactos
A195: 10161701 | B195: Gladiolos cortados
A196: 10161702 | B196: Azucenas cortadas
A197: 10161703 | B197: Claveles cortados
A198: 10161704 | B198: Tulipanes cortados
A199: 10161705 | B199: Rosas cortadas
A200: 10161707 | B200: Arreglo de flores cortadas
... 18098 more rows

Sheet ProcedureTemplate (hidden)
A1: NOMBRE O REFERENCIA DE CONTRATACIÓN | B1: FINALIDAD DE LA CONTRATACIÓN | C1: OBJETO DE CONTRATACIÓN | D1: PROCEDIMIENTO DE SELECCIÓN | E1: DESTINADO A MIPYMES | F1: CÓDIGO SNIP
A3: FECHA DE NECESSIDAD | B3: FECHA INICIO PROCESO DE COMPRA | D3: LUGAR DE EJECUCIÓN / ENTREGA | E3: Región
B4: TRIMESTRE | C4: =IF(C3="","",IF(AND(MONTH(C3)>=1,MONTH(C3)<=3),1,IF(AND(MONTH(C3)>=4,MONTH(C3)<=6),2,IF(AND(MONTH(C3)>=7,MONTH(C3)<=9),3,4)))) ->  | E4: Provincia
B5: FECHA PREVISTA ADJUDICACIÓN | E5: Municipio
B6: TRIMESTRE | C6: =IF(C5="","",IF(AND(MONTH(C5)>=1,MONTH(C5)<=3),1,IF(AND(MONTH(C5)>=4,MONTH(C5)<=6),2,IF(AND(MONTH(C5)>=7,MONTH(C5)<=9),3,4)))) ->  | E6: Distrito Municipal
A8: CÓDIGO CATÁLOGO | B8: ARTÍCULO | C8: UNIDAD DE MEDIDA | D8: CANTIDAD TOTAL ESTIMADA | E8: PRECIO UNITARIO ESTIMADO | F8: MONTO TOTAL ESTIMADO
B9: =IFERROR(INDEX(UNSPSCDes,MATCH(INDIRECT(ADDRESS(ROW(),COLUMN()-1,4)),UNSPSCCode,0)),"") ->  | F9: =INDIRECT(ADDRESS(ROW(),COLUMN()-2,4))*INDIRECT(ADDRESS(ROW(),COLUMN()-1,4)) -> 0
E10: TOTAL COMPRA ESTIMADA | F10: =SUM(Table3[MONTO TOTAL ESTIMADO]) -> 0 | H10: =C2 -> 0 | I10: =E2 -> 0 | J10: =D2 -> 0
